{"text_format":"1","workbook":"xlsx","n_sheets":15,"sheets":["Portada","Presentación-IC propuesto","Emer. y compromisos","Políticas públicas","Metadatos (IC 1)","Metadatos (IC 2)","Contra Portada","BASE DE DATOS","Hoja 1"," ","Ficha 1","Ficha 2","Ficha 3","Ficha 4","Hoja1"],"not_rendered":{"charts":0,"images":3,"macros":1,"external_links":0,"defined_names":93,"comments":0,"pivot_tables":0},"unopened":[],"bounds":{"document_bytes":16777216,"sheet_cells":100000,"rows_first":2000,"rows_last":500,"rows_between":2000,"halvings":0,"cell_chars":16384,"cell_head_chars":4096},"cells_cut":0,"cells_raw":0,"read":"whole","date_system":"1900"}

{"sheet":"Portada","index":0,"n_rows":0,"n_cols":0,"rows_kept":0,"cut":false,"hidden":false,"merged":[]}

{"sheet":"Presentación-IC propuesto","index":1,"n_rows":205,"n_cols":11,"rows_kept":205,"cut":false,"hidden":false,"merged":[[75,1,75,11],[77,8,77,11],[78,8,78,11],[10,0,15,0],[70,2,70,4],[34,1,34,4],[34,5,34,11],[40,1,40,4],[40,5,40,11],[55,1,55,4],[55,6,55,10],[56,2,56,4],[58,2,58,4],[68,2,68,4],[61,2,61,4],[67,7,67,10],[68,7,68,10],[69,7,69,10],[70,7,70,11],[48,1,48,4],[74,1,74,11],[72,5,72,11],[72,2,72,4],[76,1,76,11],[79,8,79,11],[79,5,79,7],[80,5,80,7],[78,1,78,4],[79,1,79,4],[80,1,80,4],[78,5,78,7],[77,5,77,7],[77,1,77,4],[118,1,118,2],[114,1,114,2],[80,8,80,11],[82,1,82,11],[89,8,89,11],[90,8,90,11],[92,8,92,11],[89,1,89,4],[89,5,89,7],[84,2,85,10],[90,1,90,4],[91,1,91,4],[92,1,92,4],[90,5,90,7],[91,5,91,7],[92,5,92,7],[91,8,91,11],[87,1,87,11],[10,12,15,257],[43,5,43,11],[43,1,43,4],[69,2,69,4],[59,2,59,4],[60,2,60,4],[54,1,54,11],[63,2,63,4],[65,2,65,4],[67,2,67,4],[37,1,37,4],[37,5,37,11],[56,7,56,10],[57,7,57,10],[48,5,48,11],[51,5,51,11],[174,3,174,10],[165,1,165,2],[161,1,161,2],[147,1,147,2],[139,1,139,2],[66,2,66,4],[64,2,64,4],[57,2,57,4],[62,2,62,4],[58,7,58,10],[59,7,59,10],[60,7,60,10],[61,7,61,10],[62,7,62,10],[63,7,63,10],[64,7,64,10],[65,7,65,10],[66,7,66,10],[122,1,122,2],[126,1,126,2],[169,1,169,2],[152,1,152,2],[143,1,143,2],[131,1,131,2],[2,3,2,10],[3,3,3,10],[17,1,18,11],[53,1,53,11],[21,1,21,11],[22,1,22,11],[23,1,23,11],[7,1,7,11],[10,1,15,11],[9,1,9,11],[19,1,19,11],[20,1,20,11],[25,1,25,11],[26,1,26,4],[28,1,28,4],[30,1,30,4],[26,5,26,11],[28,5,28,11],[30,5,30,11],[46,1,46,11],[51,1,51,4]]}
[]
[]
[null,null,null,"PROCEDIMIENTO PARA LA INTEGRACIÓN, ADMINISTRACIÓN Y DIFUSIÓN DEL\nCATÁLOGO NACIONAL DE INDICADORES"]
[null,null,null,"Sección VI.  Políticas generales. Numeral 1. Inciso b."]
[]
[]
[]
[null,"FORMATO PARA LA PRESENTACIÓN DE PROPUESTAS DE INDICADORES CLAVE"]
[]
[null,"MARCO LEGAL: "]
[null,"Con fundamento en lo dispuesto por el apartado B del artículo 26 de la Constitución Política de los Estados Unidos Mexicanos y artículos 13, 21, 22, 24, 25, 27, 28, 56 y 77 fracciones VII y VIII de la Ley del Sistema Nacional de Información Estadística y Geográfica (LSNIEG) y, de conformidad con la sección VI del Procedimiento para la integración, administración y difusión  del Catálogo Nacional de Indicadores, aprobado por la Junta de Gobierno el 17 de julio de 2012, se establece el presente formato para documentar los indicadores a proponer como Indicadores Clave para el Sistema Nacional de Información Estadística y Geográfica."]
[]
[]
[]
[]
[]
[]
[null,"1. INDICADOR O FAMILIA DE INDICADORES CLAVE PROPUESTA Y PROPONENTE"]
[]
[null,"Indicador: Es una medición que relaciona uno o más conceptos mediante la aplicación de una metodología sobre fenómenos de interés, que permite su análisis y sirve de base para el establecimiento de objetivos y metas, así como para su seguimiento, desde el punto de vista de su magnitud, distribución y/o comportamiento en el tiempo y el espacio; "]
[null,"Familia de Indicadores:  Indicadores que son desagregaciones conceptuales de uno general;"]
[null,"Serie estadística para la construcción de indicadores: Información cuantitativa de uno o varios períodos continuos sobre un determinado concepto y tema, que sirve para la obtención de la serie estadística del Indicador Clave;"]
[null,"Serie estadística del Indicador Clave: Datos cuantitativos de uno o varios períodos continuos sobre un determinado concepto y tema, que se obtienen de aplicar un algoritmo o procedimiento, a partir de la utilización de las series estadísticas que sirven para su construcción;"]
[null,"Proyecto de información: Conjunto de actividades ordenadas que se realiza para producir, integrar, analizar y difundir información estadística que permita cuantificar y caracterizar un universo de estudio o aspecto específico;"]
[]
[null,"1.1 Unidad del Estado u Órgano Colegiado del SNIEG que propone el Indicador o familia de Indicadores Clave:"]
[null,"Órgano Colegiado:"]
[]
[null,"Unidad del Estado\nDependencia de la Administración Pública Federal:"]
[]
[null,"Unidad Administrativa:"]
[]
[]
[]
[null,"1.2 Nombre del Indicador o familia de Indicadores \n       Clave propuesta:"]
[]
[]
[null,"1.3 Desagregación conceptual:"]
[]
[]
[null,"1.4 Objetivo del Indicador o familia de Indicadores \n       Clave propuesta:"]
[]
[]
[null,"1.5 Importancia y/o utilidad del Indicador o familia de  \n       Indicadores Clave propuesta:"]
[]
[]
[null,"1.6 Unidad del Estado responsable del cálculo del Indicador o familia de Indicadores Clave propuesta:"]
[]
[null,"Dependencia de la Administración Pública Federal:"]
[]
[]
[null,"Unidadad Administrativa:"]
[]
[null,"1.7 De los siguientes temas señalados en la LSNIEG, marque el que corresponde al Indicador o familia de Indicadores Clave propuesta: "]
[]
[null,"Tema ",null,null,null,null,"Tema "]
[null,1,"Población",null,null,null,16,"Trabajo"]
[null,2,"Dinámica demográfica",null,null,null,17,"Ciencia"]
[null,3,"Salud",null,null,null,18,"Tecnología"]
[null,4,"Educación",null,null,null,19,"Atmósfera"]
[null,5,"Empleo",null,null,null,20,"Biodiversidad"]
[null,6,"Distribución del ingreso ",null,null,null,21,"Agua"]
[null,7,"Pobreza",null,null,null,22,"Suelo"]
[null,8,"Seguridad pública",null,null,null,23,"Flora"]
[null,9,"Impartición de justicia",null,null,null,24,"Fauna"]
[null,10,"Procuración de justicia",null,null,null,25,"Residuos peligrosos "]
[null,11,"Gobierno",null,null,null,26,"Residuos sólidos"]
[null,12,"Vivienda",null,null,null,27,"Recursos naturales"]
[null,13,"Sistema de Cuentas Nacionales ",null,null,null,28,"Clima "]
[null,14,"Información financiera",null,null,null,29,"Otro"]
[null,15,"Precios"]
[]
[null,null,"Si selecciona \"Otro\", especifique el tema:"]
[]
[null,"2. CALIDAD DEL INDICADOR O FAMILIA DE INDICADORES CLAVE"]
[null,"2.1  Si aplica estándares o recomendaciones de organismos nacionales o internacionales para la generación del Indicador o familia de \n        Indicadores Clave, señale los documentos utilizados, los organismos que los elaboraron y el lugar donde pueden consultarse:"]
[]
[null,"Nombre del estándar o recomendación",null,null,null,"Organismo  elaborador ",null,null,"Lugar donde puede consultarse"]
[]
[]
[]
[]
[null,"2.2 ¿Cuál es el tiempo entre la fecha final del periodo de referencia y la fecha en que se hace público el Indicador o familia de Indicadores \n       Clave propuesta?:\n       (Oportunidad del Indicador o familia de Indicadores Clave)"]
[]
[]
[]
[]
[null,"2.3 Liste los materiales en los que se divulga el Indicador o familia de Indicadores Clave propuesta, los organismos responsables y el lugar\n       donde pueden consultarse:\n       (Medios de difusión del Indicador o familia de Indicadores Clave)"]
[]
[null,"Nombre del material",null,null,null,"Organismo responsable",null,null,"Lugar donde puede consultarse"]
[]
[]
[]
[]
[]
[]
[]
[]
[]
[]
[]
[]
[]
[]
[]
[]
[]
[]
[]
[]
[]
[]
[]
[1.1000000000000001]
[null,{"$f":"ISTEXT(#REF!)","v":false},null,null,{"$f":"IF(B115=TRUE,MID(#REF!,1,700),\"No declarado\")","v":"No declarado"}]
[]
[null,0]
[1.2]
[null,{"$f":"ISTEXT(#REF!)","v":false},null,null,{"$f":"IF(B119=TRUE,MID(#REF!,1,700),\"No declarado\")","v":"No declarado"}]
[]
[]
[1.4,null,null,false]
[null,{"$f":"ISTEXT(#REF!)","v":false},null,false,{"$f":"IF(B123=TRUE,MID(#REF!,1,700),\"No declarado\")","v":"No declarado"}]
[null,null,null,false]
[null,null,null,false]
[1.5,null,null,false]
[null,{"$f":"ISTEXT(#REF!)","v":false},null,false,{"$f":"IF(B127=TRUE,MID(#REF!,1,700),\"No declarado\")","v":"No declarado"}]
[null,null,null,false]
[null,null,null,false]
[null,null,null,false]
[1.6,null,null,false]
[null,{"$f":"ISTEXT(#REF!)","v":false},null,false,{"$f":"IF(B132=TRUE,MID(#REF!,1,700),\"No declarado\")","v":"No declarado"}]
[null,null,null,false]
[null,null,null,true]
[1.7,null,null,false]
[null,5,{"$f":"IF(B136=1,\"Demográfica y social\",IF(B136=2,\"Económica\",IF(B136=3,\"Geográfica y del Medio Ambiente\",IF(B136=4,\"Gobierno, Seguridad Pública e Impartición de Justicia\",IF(B136=5,\"No declarado\")))))","v":"No declarado"},false]
[null,null,null,false]
[null,null,null,false]
[2.1,null,null,false]
[null,{"$f":"ISTEXT(#REF!)","v":false},null,false,{"$f":"IF(B140=TRUE,MID(#REF!,1,700),\"No declarado\")","v":"No declarado"}]
[null,null,null,false]
[null,null,null,false]
["2.2a",null,null,false]
[null,{"$f":"ISTEXT('Contra Portada'!G12)","v":false},null,false,{"$f":"IF(B144=TRUE,MID('Contra Portada'!G12,1,700),\"No declarado\")","v":"No declarado"}]
[null,null,null,false]
[null,null,null,false]
["2.2b",null,null,false]
[null,{"$f":"ISTEXT('Contra Portada'!G14)","v":false},null,false,{"$f":"IF(B148=TRUE,MID('Contra Portada'!G14,1,700),\"No declarado\")","v":"No declarado"}]
[null,null,null,false]
[]
[]
["2.2c"]
[null,{"$f":"ISTEXT('Contra Portada'!G16)","v":false},null,null,{"$f":"IF(B153=TRUE,MID('Contra Portada'!G16,1,700),\"No declarado\")","v":"No declarado"}]
[]
[]
[]
[1.3]
[null,0,{"$f":"IF(B158=2, \"Proyecto no registrado en el REN\", IF(B158=1,\"Proyecto registrado en el REN\",\"\"))","v":""}]
[null,null,{"$f":"IF(B158=2, \"Si la respuesta es NO, es conveniente ponerse en contacto con el INEGI, a fin de realizar su inscripción (Ver datos en pregunta 1.3 del Instructivo)\", IF(B158=1,\"Si la respuesta es SI, asegurese que la información anotada en este formato sea congruente con la anotada en el REN\",\"\"))","v":""}]
[]
["2.2d"]
[null,{"$f":"ISTEXT('Contra Portada'!G20)","v":false},null,null,{"$f":"IF(B162=TRUE,MID('Contra Portada'!G20,1,700),\"No declarado\")","v":"No declarado"}]
[]
[]
["2.2e"]
[null,{"$f":"ISNUMBER('Contra Portada'!G22)","v":false},null,null,{"$f":"IF(B166=TRUE,MID('Contra Portada'!G22,1,700),\"No declarado\")","v":"No declarado"}]
[]
[]
["2.2e"]
[null,{"$f":"ISTEXT('Contra Portada'!G24)","v":false},null,null,{"$f":"IF(B170=TRUE,MID('Contra Portada'!G24,1,700),\"No declarado\")","v":"No declarado"}]
[]
[]
[]
[]
[null,null,null,{"$f":"TRIM(D176)","v":{"$error":"#REF!"}}]
[null," "," ",{"$f":"+CONCATENATE(G177,I181,#REF!)","v":{"$error":"#REF!"}}]
[null,null,null,1,null,null,{"$f":"CONCATENATE(E184,K180,E185,K180,E186,K180,E187,K180,E188,K180,E189,K180,E190,K180,E191,K180,E192,K180,E193,K180,E194)","v":"                                         "}]
[null,null,null,null,null," "," ",null," ",null," "]
[]
[null,null,null,null,"4.1.1",null,null,null,"4.2.1",null,"   "]
[null,null,null,0,{"$f":"IF(D181=1,\"Aprovechamiento de registros administrativos\",IF(D181=2,\"Enumeración del total de elementos de la población de estudio\",IF(D181=4,\"Generación de estadística derivada\",IF(D181=3,\"Encuesta por muestreo\", \"No declarado\"))))","v":"No declarado"},null,null,null,{"$f":"CONCATENATE(E195,K180,E196,K180,E197,K180,E198,K180,E199,K180,E200,K180,E201,K180,E202,K180,E203,K180,E204,K180,E205)","v":"                                         "}]
[null,null,null," ",{"$f":"EXACT(E181,\"Encuesta por Muestreo\")","v":false},{"$f":"EXACT(E181,\"Aprovechamiento de Registros Administrativos\")","v":false},{"$f":"EXACT(E181,\"Enumeración del total de elementos de la población de estudio\")","v":false},null,{"$f":"EXACT(E181,\"Generación de estadística derivada\")","v":false}]
[]
[null,null,1,false,{"$f":"IF(D184=TRUE,\"Población y dinámica demográfica\", \" \")","v":" "}]
[null,null,2,false,{"$f":"IF(D185=TRUE,\"Salud  \", \" \")","v":" "},null,null,null,null,null,"Salud"]
[null,null,3,false,{"$f":"IF(D186=TRUE,\"Educación  \", \" \")","v":" "},null,null,null,null,null,"Educación"]
[null,null,4,false,{"$f":"IF(D187=TRUE,\"Empleo  \", \" \")","v":" "},null,null,null,null,null,"Empleo"]
[null,null,5,false,{"$f":"IF(D188=TRUE,\"Distribución del ingreso y pobreza   \", \" \")","v":" "},null,null,null,null,null,"Distribución del ingreso y pobreza"]
[null,null,6,false,{"$f":"IF(D189=TRUE,\"Seguridad pública e impartición de justicia  \", \" \")","v":" "},null,null,null,null,null,"Seguridad pública e impartición de justicia "]
[null,null,7,false,{"$f":"IF(D190=TRUE,\"Gobierno  \", \" \")","v":" "},null,null,null,null,null,"Gobierno"]
[null,null,8,false,{"$f":"IF(D191=TRUE,\"Vivienda  \", \" \")","v":" "},null,null,null,null,null,"Vivienda"]
[null,null,9,false,{"$f":"IF(D192=TRUE,\"Sistema de cuentas nacionales  \", \" \")","v":" "},null,null,null,null,null,"Sistema de Cuentas Nacionales "]
[null,null,10,false,{"$f":"IF(D193=TRUE,\"Información financiera  \", \" \")","v":" "},null,null,null,null,null,"Información financiera"]
[null,null,11,false,{"$f":"IF(D194=TRUE,\"Precios  \", \" \")","v":" "},null,null,null,null,null,"Precios"]
[null,null,12,false,{"$f":"IF(D195=TRUE,\"Trabajo  \", \" \")","v":" "},null,null,null,null,null,"Trabajo"]
[null,null,13,false,{"$f":"IF(D196=TRUE,\"Ciencia y tecnología  \", \" \")","v":" "},null,null,null,null,null,"Ciencia y tecnología"]
[null,null,14,false,{"$f":"IF(D197=TRUE,\"Atmósfera  \", \" \")","v":" "},null,null,null,null,null,"Atmósfera"]
[null,null,15,false,{"$f":"IF(D198=TRUE,\"Biodiversidad  \", \" \")","v":" "},null,null,null,null,null,"Biodiversidad"]
[null,null,16,false,{"$f":"IF(D199=TRUE,\"Agua  \", \" \")","v":" "},null,null,null,null,null,"Agua"]
[null,null,17,false,{"$f":"IF(D200=TRUE,\"Suelo  \", \" \")","v":" "},null,null,null,null,null,"Suelo"]
[null,null,18,false,{"$f":"IF(D201=TRUE,\"Flora  \", \" \")","v":" "},null,null,null,null,null,"Flora"]
[null,null,19,false,{"$f":"IF(D202=TRUE,\"Fauna  \", \" \")","v":" "},null,null,null,null,null,"Fauna"]
[null,null,20,false,{"$f":"IF(D203=TRUE,\"Residuos peligrosos y residuos sólidos  \", \" \")","v":" "},null,null,null,null,null,"Residuos peligrosos y residuos sólidos"]
[null,null,21,false,{"$f":"IF(D204=TRUE,\"Recursos naturales  \", \" \")","v":" "},null,null,null,null,null,"Recursos naturales"]
[null,null,22,false,{"$f":"IF(D205=TRUE,\"Clima  \", \" \")","v":" "},null,null,null,null,null,"Clima "]

{"sheet":"Emer. y compromisos","index":2,"n_rows":121,"n_cols":15,"rows_kept":121,"cut":false,"hidden":true,"merged":[[113,1,114,17],[22,1,22,15],[27,2,27,9],[33,1,33,15],[28,2,28,9],[27,10,27,15],[36,4,38,13],[29,2,29,9],[30,2,30,9],[31,2,31,9],[36,14,38,14],[29,10,29,15],[30,10,30,15],[31,10,31,15],[26,1,26,9],[28,10,28,15],[26,10,26,15],[9,1,9,15],[18,8,18,14],[2,5,2,13],[3,5,3,13],[21,1,21,15],[7,1,8,15],[19,8,19,14]]}
[]
[]
[null,null,null,null,null,"REGLAS PARA LA DETERMINACIÓN\nDE LA INFORMACIÓN DE INTERÉS NACIONAL "]
[null,null,null,null,null,"Formato Regla Décima. Información Estadística"]
[]
[]
[]
[null,"4. ATENCIÓN DE EMERGENCIAS O COMPROMISOS INTERNACIONALES"]
[]
[null,"4.1 ¿Cuáles de los siguientes organismos han declarado de utilidad la información propuesta para prevenir o atender desastres naturales?"]
[null,null,"(Marque las opciones correspondientes)"]
[]
[null,null,null,null,null,"1. Sistema Nacional de Protección civil"]
[]
[null,null,null,null,null,"2. Centro Nacional de Prevención de Desastres"]
[]
[null,null,null,null,null,"3. Ninguno"]
[]
[null,null,null,null,null,"4. Otro"]
[null,null,null,null,null,null,null,null,"Especifique"]
[]
[null,"4.2 ¿La información estadística propuesta se utiliza para atender acuerdos, tratados o compromisos establecidos a nivel internacional?"]
[null,"       (Marque la opción correspondiente. Si selecciona la opción \"Sí\", especifique el nombre de los compromisos y organismos o países; si selecciona la opción\n       \"No\", deje en blanco 4.3)"]
[]
[null,null,null,null,null,null,null," ",null," "]
[null,null,{"$f":"+E120","v":"Especifique"},null,null,null,null," "]
[null,"Nombre del acuerdo, tratado o compromiso internacional",null,null,null,null,null,null,null,null,"Nombre del organismo o país con el que se estableció"]
[null,1]
[null,2]
[null,3]
[null,4]
[null,5]
[]
[null,"4.3 ¿El compromiso internacional ha sido suscrito por el Presidente de la República y aprobado por el Senado?"]
[]
[]
[null,null,null,null,null,null,null,null,null,null,null,null,null,null,"Anexar copia del documento aprobatorio o comprobatorio y/o observaciones"]
[]
[]
[]
[]
["3.4a2",null,{"$f":"ISTEXT(#REF!)","v":false},null,{"$f":"IF(C42=TRUE,MID(#REF!,1,500), \"No declarado\")","v":"No declarado"},null,null,null,null,"   /    ",{"$f":"CONCATENATE(E40,J42,E42,J42,E43,J42,E44,J42,E45,J42,E46,J42,E47,J42,E48,J42,E49,J42,E50,J42,E51,J42,E52,J42,E53)","v":"   /    No declarado   /    No declarado   /    No declarado   /    No declarado   /    No declarado   /    No declarado   /    No declarado   /    No declarado   /    No declarado   /    No declarado   /    No declarado   /    No declarado"}]
["3.4a3",null,{"$f":"ISTEXT(#REF!)","v":false},null,{"$f":"IF(C43=TRUE,MID(#REF!,1,500), \"No declarado\")","v":"No declarado"},null,null,null,null,"      "]
["3.4a4",null,{"$f":"ISTEXT(#REF!)","v":false},null,{"$f":"IF(C44=TRUE,MID(#REF!,1,500), \"No declarado\")","v":"No declarado"}]
["3.4a5",null,{"$f":"ISTEXT(#REF!)","v":false},null,{"$f":"IF(C45=TRUE,MID(#REF!,1,500), \"No declarado\")","v":"No declarado"}]
["3.4a6",null,{"$f":"ISTEXT(#REF!)","v":false},null,{"$f":"IF(C46=TRUE,MID(#REF!,1,500), \"No declarado\")","v":"No declarado"}]
["3.4a7",null,{"$f":"ISTEXT(#REF!)","v":false},null,{"$f":"IF(C47=TRUE,MID(#REF!,1,500), \"No declarado\")","v":"No declarado"}]
["3.4a8",null,{"$f":"ISTEXT(#REF!)","v":false},null,{"$f":"IF(C48=TRUE,MID(#REF!,1,500), \"No declarado\")","v":"No declarado"}]
["3.4a9",null,{"$f":"ISTEXT(#REF!)","v":false},null,{"$f":"IF(C49=TRUE,MID(#REF!,1,500), \"No declarado\")","v":"No declarado"}]
["3.4a10",null,{"$f":"ISTEXT(#REF!)","v":false},null,{"$f":"IF(C50=TRUE,MID(#REF!,1,500), \"No declarado\")","v":"No declarado"}]
["3.4a11",null,{"$f":"ISTEXT(#REF!)","v":false},null,{"$f":"IF(C51=TRUE,MID(#REF!,1,500), \"No declarado\")","v":"No declarado"}]
["3.4a12",null,{"$f":"ISTEXT(#REF!)","v":false},null,{"$f":"IF(C52=TRUE,MID(#REF!,1,500), \"No declarado\")","v":"No declarado"}]
["3.4a13",null,{"$f":"ISTEXT(#REF!)","v":false},null,{"$f":"IF(C53=TRUE,MID(#REF!,1,500), \"No declarado\")","v":"No declarado"}]
[]
["3.4b1",null,{"$f":"ISTEXT(#REF!)","v":false},null,{"$f":"IF(C55=TRUE,MID(#REF!,1,500), \"No declarado\")","v":"No declarado"},null,null,null,null,null,{"$f":"CONCATENATE(E55,J42,E56,J42,E57,J42,E58,J42,E59,J42,E60,J42,E61,J42,E62,J42,E63,J42,E64,J42,E65,J42,E66,J42,E67)","v":"No declarado   /    No declarado   /    No declarado   /    No declarado   /    No declarado   /    No declarado   /    No declarado   /    No declarado   /    No declarado   /    No declarado   /    No declarado   /    No declarado   /    No declarado"}]
["3.4b2",null,{"$f":"ISTEXT(#REF!)","v":false},null,{"$f":"IF(C56=TRUE,MID(#REF!,1,500), \"No declarado\")","v":"No declarado"}]
["3.4b3",null,{"$f":"ISTEXT(#REF!)","v":false},null,{"$f":"IF(C57=TRUE,MID(#REF!,1,500), \"No declarado\")","v":"No declarado"}]
["3.4b4",null,{"$f":"ISTEXT(#REF!)","v":false},null,{"$f":"IF(C58=TRUE,MID(#REF!,1,500), \"No declarado\")","v":"No declarado"}]
["3.4b5",null,{"$f":"ISTEXT(#REF!)","v":false},null,{"$f":"IF(C59=TRUE,MID(#REF!,1,500), \"No declarado\")","v":"No declarado"}]
["3.4b6",null,{"$f":"ISTEXT(#REF!)","v":false},null,{"$f":"IF(C60=TRUE,MID(#REF!,1,500), \"No declarado\")","v":"No declarado"}]
["3.4b7",null,{"$f":"ISTEXT(#REF!)","v":false},null,{"$f":"IF(C61=TRUE,MID(#REF!,1,500), \"No declarado\")","v":"No declarado"},null,null,null,null,"   /    "]
["3.4b8",null,{"$f":"ISTEXT(#REF!)","v":false},null,{"$f":"IF(C62=TRUE,MID(#REF!,1,500), \"No declarado\")","v":"No declarado"},null,null,null,null,"      "]
["3.4b9",null,{"$f":"ISTEXT(#REF!)","v":false},null,{"$f":"IF(C63=TRUE,MID(#REF!,1,500), \"No declarado\")","v":"No declarado"}]
["3.4b10",null,{"$f":"ISTEXT(#REF!)","v":false},null,{"$f":"IF(C64=TRUE,MID(#REF!,1,500), \"No declarado\")","v":"No declarado"}]
["3.4b11",null,{"$f":"ISTEXT(#REF!)","v":false},null,{"$f":"IF(C65=TRUE,MID(#REF!,1,500), \"No declarado\")","v":"No declarado"}]
["3.4b12",null,{"$f":"ISTEXT(#REF!)","v":false},null,{"$f":"IF(C66=TRUE,MID(#REF!,1,500), \"No declarado\")","v":"No declarado"}]
["3.4b13",null,{"$f":"ISTEXT(#REF!)","v":false},null,{"$f":"IF(C67=TRUE,MID(#REF!,1,500), \"No declarado\")","v":"No declarado"}]
[]
["3.4c1",null,{"$f":"ISTEXT(#REF!)","v":false},null,{"$f":"IF(C69=TRUE,MID(#REF!,1,500), \"No declarado\")","v":"No declarado"},null,null,null,null,null,{"$f":"CONCATENATE(E69,J61,E70,J61,E71,J61,E72,J61,E73,J61,E74,J61,E75,J61,E76,J61,E77,J61,E78,J61,E79,J61,E80,J61,E81)","v":"No declarado   /    No declarado   /    No declarado   /    No declarado   /    No declarado   /    No declarado   /    No declarado   /    No declarado   /    No declarado   /    No declarado   /    No declarado   /    No declarado   /    No declarado"}]
["3.4c2",null,{"$f":"ISTEXT(#REF!)","v":false},null,{"$f":"IF(C70=TRUE,MID(#REF!,1,500), \"No declarado\")","v":"No declarado"}]
["3.4c3",null,{"$f":"ISTEXT(#REF!)","v":false},null,{"$f":"IF(C71=TRUE,MID(#REF!,1,500), \"No declarado\")","v":"No declarado"}]
["3.4c4",null,{"$f":"ISTEXT(#REF!)","v":false},null,{"$f":"IF(C72=TRUE,MID(#REF!,1,500), \"No declarado\")","v":"No declarado"}]
["3.4c5",null,{"$f":"ISTEXT(#REF!)","v":false},null,{"$f":"IF(C73=TRUE,MID(#REF!,1,500), \"No declarado\")","v":"No declarado"}]
["3.4c6",null,{"$f":"ISTEXT(#REF!)","v":false},null,{"$f":"IF(C74=TRUE,MID(#REF!,1,500), \"No declarado\")","v":"No declarado"}]
["3.4c7",null,{"$f":"ISTEXT(#REF!)","v":false},null,{"$f":"IF(C75=TRUE,MID(#REF!,1,500), \"No declarado\")","v":"No declarado"}]
["3.4c8",null,{"$f":"ISTEXT(#REF!)","v":false},null,{"$f":"IF(C76=TRUE,MID(#REF!,1,500), \"No declarado\")","v":"No declarado"}]
["3.4c9",null,{"$f":"ISTEXT(#REF!)","v":false},null,{"$f":"IF(C77=TRUE,MID(#REF!,1,500), \"No declarado\")","v":"No declarado"}]
["3.4c10",null,{"$f":"ISTEXT(#REF!)","v":false},null,{"$f":"IF(C78=TRUE,MID(#REF!,1,500), \"No declarado\")","v":"No declarado"}]
["3.4c11",null,{"$f":"ISTEXT(#REF!)","v":false},null,{"$f":"IF(C79=TRUE,MID(#REF!,1,500), \"No declarado\")","v":"No declarado"}]
["3.4c12",null,{"$f":"ISTEXT(#REF!)","v":false},null,{"$f":"IF(C80=TRUE,MID(#REF!,1,500), \"No declarado\")","v":"No declarado"},null,null,null,null,"   /    "]
["3.4c13",null,{"$f":"ISTEXT(#REF!)","v":false},null,{"$f":"IF(C81=TRUE,MID(#REF!,1,500), \"No declarado\")","v":"No declarado"},null,null,null,null,"      "]
["En esta versión ya no existen los siguientes:"]
["3.4d1",null,{"$f":"ISTEXT(#REF!)","v":false},null,{"$f":"IF(C83=TRUE,MID(#REF!,1,500), \"No declarado\")","v":"No declarado"},null,null,null,null,null,{"$f":"CONCATENATE(E83,J80,E84,J80,E85,J80,E86,J80,E87,J80,E88,J80,E89,J80,E90,J80,E91,J80,E92,J80,E93,J80,E94,J80,E95)","v":"No declarado   /    No declarado   /    No declarado   /    No declarado   /    No declarado   /    No declarado   /    No declarado   /    No declarado   /    No declarado   /    No declarado   /    No declarado   /    No declarado   /    No declarado"}]
["3.4d2",null,{"$f":"ISTEXT(#REF!)","v":false},null,{"$f":"IF(C84=TRUE,MID(#REF!,1,500), \"No declarado\")","v":"No declarado"}]
["3.4d3",null,{"$f":"ISTEXT(#REF!)","v":false},null,{"$f":"IF(C85=TRUE,MID(#REF!,1,500), \"No declarado\")","v":"No declarado"}]
["3.4d4",null,{"$f":"ISTEXT(#REF!)","v":false},null,{"$f":"IF(C86=TRUE,MID(#REF!,1,500), \"No declarado\")","v":"No declarado"}]
["3.4d5",null,{"$f":"ISTEXT(#REF!)","v":false},null,{"$f":"IF(C87=TRUE,MID(#REF!,1,500), \"No declarado\")","v":"No declarado"}]
["3.4d6",null,{"$f":"ISTEXT(#REF!)","v":false},null,{"$f":"IF(C88=TRUE,MID(#REF!,1,500), \"No declarado\")","v":"No declarado"}]
["3.4d7",null,false,null,{"$f":"IF(C89=TRUE,MID(#REF!,1,500), \"No declarado\")","v":"No declarado"}]
["3.4d8",null,false,null,{"$f":"IF(C90=TRUE,MID(#REF!,1,500), \"No declarado\")","v":"No declarado"}]
["3.4d9",null,false,null,{"$f":"IF(C91=TRUE,MID(#REF!,1,500), \"No declarado\")","v":"No declarado"}]
["3.4d10",null,false,null,{"$f":"IF(C92=TRUE,MID(#REF!,1,500), \"No declarado\")","v":"No declarado"}]
["3.4d11",null,false,null,{"$f":"IF(C93=TRUE,MID(#REF!,1,500), \"No declarado\")","v":"No declarado"}]
["3.4d12",null,{"$f":"ISTEXT(#REF!)","v":false},null,{"$f":"IF(C94=TRUE,MID(#REF!,1,500), \"No declarado\")","v":"No declarado"}]
["3.4d13",null,{"$f":"ISTEXT(#REF!)","v":false},null,{"$f":"IF(C95=TRUE,MID(#REF!,1,500), \"No declarado\")","v":"No declarado"}]
[]
["3.5a",null,{"$f":"ISTEXT(#REF!)","v":false},null,{"$f":"IF(C97=TRUE,MID(#REF!,1,500), \"No declarado\")","v":"No declarado"}]
[]
[null,null,null,null,null,null,null,"espacio ",1,{"$f":"CONCATENATE(I99,H100,E100)","v":"1     No declarado"}]
["3.6a1",null,{"$f":"ISTEXT(E28)","v":false},null,{"$f":"IF(C100=TRUE,MID(E28,1,500), \"No declarado\")","v":"No declarado"},null,null,"     ",2,{"$f":"CONCATENATE(I100,H101,E101)","v":"2      No declarado"}]
["3.6a2",null,{"$f":"ISTEXT(E29)","v":false},null,{"$f":"IF(C101=TRUE,MID(E29,1,500), \"No declarado\")","v":"No declarado"},null,null,"      ",3,{"$f":"CONCATENATE(I101,H100,E102)","v":"3     No declarado"}]
["3.6a3",null,{"$f":"ISTEXT(E30)","v":false},null,{"$f":"IF(C102=TRUE,MID(E30,1,500), \"No declarado\")","v":"No declarado"},null,null," ",4,{"$f":"CONCATENATE(I102,H100,E103)","v":"4     No declarado"}]
["3.6a4",null,{"$f":"ISTEXT(E31)","v":false},null,{"$f":"IF(C103=TRUE,MID(E31,1,500), \"No declarado\")","v":"No declarado"},null,null,null,5,{"$f":"CONCATENATE(I103,H100,E104)","v":"5     No declarado"}]
["3.6a5",null,{"$f":"ISTEXT(E32)","v":false},null,{"$f":"IF(C104=TRUE,MID(E32,1,500), \"No declarado\")","v":"No declarado"}]
[]
["3.6b1",null,{"$f":"ISTEXT(K28)","v":false},null,{"$f":"IF(C106=TRUE,MID(K28,1,500), \"No declarado\")","v":"No declarado"}]
["3.6b2",null,{"$f":"ISTEXT(K29)","v":false},null,{"$f":"IF(C107=TRUE,MID(K29,1,500), \"No declarado\")","v":"No declarado"}]
["3.6b3",null,{"$f":"ISTEXT(K30)","v":false},null,{"$f":"IF(C108=TRUE,MID(K30,1,500), \"No declarado\")","v":"No declarado"}]
["3.6b4",null,{"$f":"ISTEXT(K31)","v":false},null,{"$f":"IF(C109=TRUE,MID(K31,1,500), \"No declarado\")","v":"No declarado"},null,null,null,null,{"$f":"CONCATENATE(E106,H100,E107,H100,E108,H100,E109,H100,E110)","v":"No declarado     No declarado     No declarado     No declarado     No declarado"}]
["3.6b5",null,{"$f":"ISTEXT(K32)","v":false},null,{"$f":"IF(C110=TRUE,MID(K32,1,500), \"No declarado\")","v":"No declarado"}]
[null,null,null,null,"       ",null,null,null,null,null,"       "]
[null,null,null,null,{"$f":"CONCATENATE(E28,E111,E29,E111,E30,E111,E31,E111,E32)","v":"                            "},null,null,null,null,null,{"$f":"CONCATENATE(K28,K111,K29,K111,K30,K111,K31,K111,K32)","v":"                            "}]
[null,null,null,null,{"$f":"MID(E28,2,2)","v":""},{"$f":"_Sid55","v":{"$error":"#NAME?"}}]
[]
[]
[]
[3.5]
[null,null,0,null,{"$f":"IF(C118=2, \"Pasa       a        4.2\", \"Especifique\")","v":"Especifique"},null,{"$f":"IF(C118=1,\"Sí\",\"No\")","v":"No"},{"$f":"IF(C118=0,\"No declarado\",MID(G118,1,2))","v":"No declarado"}]
[]
[3.6,null,0,null,{"$f":"IF(C120=2, \"Pase a la siguiente página \", \"Especifique\")","v":"Especifique"},null,{"$f":"IF(C120=1,\"Sí\",\"No\")","v":"No"},{"$f":"IF(C120=0,\"No declarado\",MID(G120,1,2))","v":"No declarado"}]
[null,null,false,null,{"$f":"IF(C121=TRUE,\"Pasa a la siguiente página\",\" \")","v":" "}]

{"sheet":"Políticas públicas","index":3,"n_rows":192,"n_cols":15,"rows_kept":192,"cut":false,"hidden":false,"merged":[[90,4,90,7],[41,4,41,9],[42,4,44,11],[119,1,119,12],[26,1,26,12],[27,1,27,12],[46,1,46,12],[116,9,116,11],[117,9,117,11],[38,4,40,11],[37,4,37,9],[30,4,32,11],[33,4,33,9],[34,4,36,11],[108,9,108,11],[109,1,109,5],[3,4,3,12],[4,4,4,12],[8,1,9,12],[20,1,20,12],[17,1,17,12],[15,1,15,6],[15,7,15,11],[10,1,10,11],[11,1,11,6],[11,7,11,11],[13,1,13,6],[13,7,13,11],[19,1,19,11],[86,4,87,10],[86,11,87,11],[85,4,85,10],[76,1,76,12],[84,1,84,12],[77,4,77,7],[78,4,79,10],[78,11,79,11],[80,4,80,11],[101,4,101,11],[102,4,103,10],[115,6,115,8],[108,1,108,5],[108,6,108,8],[109,6,109,8],[109,9,109,11],[112,1,112,12],[110,6,110,8],[106,1,106,12],[110,1,110,5],[116,1,116,5],[117,1,117,5],[116,6,116,8],[117,6,117,8],[115,1,115,5],[121,4,122,10],[121,11,122,11],[131,1,131,3],[131,4,131,5],[131,6,131,7],[131,8,131,9],[131,10,131,11],[23,5,24,10],[71,4,71,9],[57,1,65,3],[58,4,60,10],[58,11,60,11],[61,4,61,9],[65,4,65,7],[55,4,55,7],[47,1,55,3],[48,4,50,10],[51,4,51,9],[52,4,54,11],[48,11,50,11],[47,4,47,10],[57,4,57,10],[62,4,64,10],[120,4,120,10],[56,1,56,12],[110,9,110,11],[68,4,70,10],[68,11,70,11],[66,1,66,12],[115,9,115,11],[91,4,92,10],[94,11,95,11],[93,4,93,11],[97,1,97,11],[98,4,98,7],[94,4,95,10],[99,4,100,10],[102,11,103,11],[89,1,89,12],[62,11,64,11],[81,4,82,10],[81,11,82,11],[67,4,67,10],[72,4,74,11]]}
[null,null,null,null,null,null,{"$f":"ISTEXT(#REF!)","v":false},{"$f":"ISTEXT(#REF!)","v":false},{"$f":"TRIM(#REF!)","v":{"$error":"#REF!"}},{"$f":"ISTEXT(#REF!)","v":false},{"$f":"IF(H1=FALSE,\"No declarado\",MID(#REF!,1,100))","v":"No declarado"}]
[]
[]
[null,null,null,null,"PROCEDIMIENTO PARA LA INTEGRACIÓN, ADMINISTRACIÓN Y DIFUSIÓN DEL\nCATÁLOGO NACIONAL DE INDICADORES"]
[null,null,null,null,"Sección VI.  Políticas generales. Numeral 1. Inciso b."]
[]
[]
[]
[null,"3. POLÍTICAS PÚBLICAS DE ALCANCE NACIONAL \n(FUNDAMENTO DEL INDICADOR O FAMILIA DE INDICADORES CLAVE PROPUESTA)"]
[]
[null,"3.1 Uso del Indicador o familia de Indicadores Clave propuesta en políticas públicas:\n      (Responder al menos una de las preguntas de 3.1.1 a 3.1.3)"]
[null,"3.1.1 Para diseñar nuevas políticas públicas en materia de:"]
[]
[null,"3.1.2 Para el seguimiento de qué políticas públicas:"]
[]
[null,"3.1.3 Para la evaluación de qué políticas públicas:"]
[]
[null,"3.2 Referencia del Indicador o familia de Indicadores Clave:",null,null,null,null,null,null,null,null,null,null,null,null," "]
[]
[null,"3.2.1 Ley aplicable"]
[null,"          Si selecciona la opción \"Sí\",  especifique la Ley  e indique: Título, capítulo, sección, artículo, fracción, párrafo, fecha de última\n          publicación."]
[]
[]
[]
[]
[]
[null,"3.2.2 Plan Nacional de Desarrollo 2013-2018"]
[null,"3.2.2 El Plan Nacional de Desarrollo\n          Si contesta afirmativamente, especifique Meta Nacional, Objetivo, Estrategia y Línea de acción."]
[]
[null,null,null,null,"Meta Nacional:"]
[]
[null,null,null,null,null,null,null,null,null,null,null,null,null,null," "]
[]
[null,null,null,null,"Objetivo:",null,null,null,null,null,null,null,null,null," "]
[]
[]
[]
[null,null,null,null,"Estrategia:",null,null,null,null,null,null,null,null,null," "]
[]
[]
[]
[null,null,null,null,"Línea de acción:"]
[]
[]
[]
[]
[null,"3.2.3 Programa nacional, sectorial, regional o sectorial\n          Si contesta afirmativamente, especifique el nombre del programa y los objetivos, metas e indicadores relacionados.                                                                   "]
[null,null,null,null,"Nombre del Programa y periodo de vigencia:\n(En su caso, indicar dirección electrónica donde puede consultarse) "]
[null,null,null,null,null,null,null,null,null,null,null,"Anexar Programa en PDF como documentación soporte a la propuesta."]
[null,null,null,null,null,null,null,null,null,null,null,null,null,null," "]
[]
[null,null,null,null,"Objetivos, metas e indicadores relacionados:",null,null,null,null,null,null,null,null,null," "]
[]
[]
[]
[]
[null,"3.2.4 Plan Estatal de Desarrollo\n          Si contesta afirmativamente, especifique el nombre del Plan y  los objetivos, metas e indicadores relacionados.                                                                                      "]
[null,null,null,null,"Nombre del Plan y periodo de vigencia: \n(En su caso, indicar dirección electrónica donde puede consultarse) "]
[null,null,null,null,null,null,null,null,null,null,null,"Anexar Plan en PDF como documentación soporte a la propuesta."]
[null,null,null,null,null,null,null,null,null,null,null,null,null,null," "]
[]
[null,null,null,null,"Objetivos, metas e indicadores relacionados:",null,null,null,null,null,null,null,null,null," "]
[]
[]
[]
[]
[null,"3.2.5 Programa de Desarrollo Municipal \n          Si contesta afirmativamente, especifique el nombre del Programa y  los objetivos, metas e indicadores relacionados.                                                                                      "]
[null,null,null,null,"Nombre del Programa y periodo de vigencia: \n(En su caso, indicar dirección electrónica donde puede consultarse) "]
[null,null,null,null,null,null,null,null,null,null,null,"Anexar Programa en PDF como documentación soporte a la propuesta."]
[]
[]
[null,null,null,null,"Objetivos, metas e indicadores relacionados:"]
[]
[]
[]
[]
[null,"3.2.6 Documentos programáticos del SNIEG  \n          Si contesta afirmativamente, especifique si corresponde al Programa Estratégico del SNIEG, Programa Nacional de Estadística y\n          Geografía o Programa Anual de Estadística y Geografía y el periodo de vigencia."]
[null,null,null,null,"Nombre del Programa y periodo de vigencia: "]
[]
[]
[null,null,null,null,"Estrategia Maestra, Objetivo, Proyecto, Actividad general y/o Actividad específica:"]
[]
[]
[]
[null,"3.2.7 Programa de trabajo del Comité Técnico Especializado   \n          Si contesta afirmativamente, especifique el nombre del Programa, los objetivos y metas relacionadas."]
[null,null,null,null,"Nombre del Programa y periodo de vigencia: \n(En su caso, indicar dirección electrónica donde puede consultarse) "]
[null,null,null,null,null,null,null,null,null,null,null,"Anexar Programa en PDF como documentación soporte a la propuesta."]
[]
[]
[null,"3.2.8 Acuerdo del Comité Técnico Especializado, Comité Ejecutivo o Consejo Consultivo Nacional\n          Si contesta afirmativamente, especifique el Órgano Colegiado y el Acuerdo."]
[null,null,null,null,"Órgano Colegiado: "]
[]
[]
[null,null,null,null,"Acuerdo:\n(En su caso, indicar dirección electrónica donde puede consultarse) "]
[null,null,null,null,null,null,null,null,null,null,null,"Anexar Acuerdo en PDF como documentación soporte a la propuesta."]
[]
[]
[null,"3.2.9 Acuerdo o Programa de órganos colegiados del Estado Mexicano legalmente constituidos \n          Si contesta afirmativamente, especifique el órgano colegiado y el nombre del acuerdo o programa  "]
[null,null,null,null,"Órgano Colegiado:"]
[]
[]
[null,null,null,null,"Acuerdo o programa"]
[null,null,null,null,null,null,null,null,null,null,null,"Anexar archivo PDF o dirección electrónica del Plan Estatal de Desarrollo."]
[]
[]
[]
[null,"3.2.9 Recomendaciones de organismos nacionales o internacionales respecto a la medición y monitoreo de fenómenos de interés nacional,\n          mundial o regional:\n          Si contesta afirmativamente, especifique la recomendación, el organismo responsable y el lugar donde puede consultarse."]
[]
[null,"Recomendación",null,null,null,null,"Organismo responsable",null,null,"Lugar donde puede consultarse"]
[]
[]
[]
[null,"3.2.10 Compromisos establecidos por el Estado Mexicano respecto a indicadores específicos de interés para organismos internacionales\n             Si selecciona la opción \"Sí\", indique el compromiso, el organismo o país con el que se estableció y el lugar donde puede consultarse."]
[]
[]
[null,"Compromiso",null,null,null,null,"Organismo o país con el que se estableció el compromiso",null,null,"Lugar donde puede consultarse"]
[]
[]
[]
[null,"3.2.11 Otras fuentes generadas por las Unidades del Estado\n             Si contesta afirmativamente, especifique la fuente utilizada por la Unidad del Estado. "]
[null,null,null,null,"Nombre:\n(En su caso, indicar dirección electrónica donde puede consultarse) "]
[null,null,null,null,null,null,null,null,null,null,null,"Anexar fuente en PDF como documentación soporte a la propuesta."]
[]
[]
[]
[]
[]
[]
[]
[]
[]
[]
[]
[]
["3.1a",{"$f":"ISTEXT(#REF!)","v":false}]
[null,{"$f":"IF(B135=TRUE,MID(#REF!,1,500), \"No declarado\")","v":"No declarado"}]
[]
[null,{"$f":"ISTEXT(#REF!)","v":false}]
["3.1b",{"$f":"IF(B138=TRUE,MID(#REF!,1,500), \"No declarado\")","v":"No declarado"},null," "," "," "]
[]
[]
["3.21a",null,null,null,null,null,1,{"$f":"IF(G142=2, \"Si\", \"No\")","v":"No"},{"$f":"IF(G142=0,\"No declarado\",MID(H142,1,2))","v":"No"}]
[null,{"$f":"ISTEXT(#REF!)","v":false}]
[null,{"$f":"IF(B143=TRUE,MID(#REF!,1,800), \"No declarado\")","v":"No declarado"}]
[]
["3.21b",{"$f":"ISTEXT(#REF!)","v":false}]
[null,{"$f":"IF(B146=TRUE,MID(#REF!,1,800), \"No declarado\")","v":"No declarado"}]
[]
["3.21c",{"$f":"ISTEXT(#REF!)","v":false}]
[null,{"$f":"IF(B149=TRUE,MID(#REF!,1,500), \"No declarado\")","v":"No declarado"}]
[]
["3.21d",{"$f":"ISTEXT(#REF!)","v":false}]
[null,{"$f":"IF(B152=TRUE,MID(#REF!,1,500), \"No declarado\")","v":"No declarado"},null,null,null,null,null,null,"          /          "]
[null,null,null,null,null,null,null,null,{"$f":"CONCATENATE(B144,I153,B158)","v":"No declarado          /          No declarado"}]
[]
["3.22a",null,null,null,null,null,null,0,{"$f":"IF(H156=1, \"Si\", \"No\")","v":"No"},{"$f":"IF(H156=0,\"No declarado\",MID(I156,1,2))","v":"No declarado"}]
[null,{"$f":"ISTEXT(#REF!)","v":false}]
[null,{"$f":"IF(B157=TRUE,MID(#REF!,1,800), \"No declarado\")","v":"No declarado"}]
[]
["3.22b",{"$f":"ISTEXT(#REF!)","v":false}]
[null,{"$f":"IF(B160=TRUE,MID(#REF!,1,800), \"No declarado\")","v":"No declarado"}]
[]
["3.22c",{"$f":"ISTEXT(#REF!)","v":false}]
[null,{"$f":"IF(B163=TRUE,MID(#REF!,1,800), \"No declarado\")","v":"No declarado"}]
[]
["3.22d",{"$f":"ISTEXT(#REF!)","v":false}]
[null,{"$f":"IF(B166=TRUE,MID(#REF!,1,500), \"No declarado\")","v":"No declarado"}]
[]
[null,null,null,null,null,null,0]
[null,null,null,null,null,0,{"$f":"IF(F170=1, \"Si\", \"No\")","v":"No"},{"$f":"IF(F170=0,\"No declarado\",MID(G170,1,2))","v":"No declarado"}]
["3.23a"]
[null,{"$f":"ISTEXT(#REF!)","v":false}]
[null,{"$f":"IF(B172=TRUE,MID(#REF!,1,1000), \"No declarado\")","v":"No declarado"}]
[]
["3.23b",{"$f":"ISTEXT(#REF!)","v":false}]
[null,{"$f":"IF(B175=TRUE,MID(#REF!,1,1000), \"No declarado\")","v":"No declarado"}]
[]
["3.23c",{"$f":"ISTEXT(#REF!)","v":false}]
[null,{"$f":"IF(B178=TRUE,MID(#REF!,1,1000), \"No declarado\")","v":"No declarado"}]
[]
["3.23d",{"$f":"ISTEXT(#REF!)","v":false}]
[null,{"$f":"IF(B181=TRUE,MID(#REF!,1,1000), \"No declarado\")","v":"No declarado"}]
[]
[]
[]
[3.3]
[null,false,null,{"$f":"IF(B187=TRUE,\"Federal\", \"\")","v":""},"         ",{"$f":"CONCATENATE(D187,E187,D188,E187,D189)","v":"                  "}]
[null,false,null,{"$f":"IF(B188=TRUE,\"Estatal\", \"\")","v":""}]
[null,false,null,{"$f":"IF(B189=TRUE,\"Municipal\", \"\")","v":""}]
[]
[]
["ejemplo de concatenar 3.21 y 3.22"]

{"sheet":"Metadatos (IC 1)","index":4,"n_rows":74,"n_cols":10,"rows_kept":74,"cut":false,"hidden":false,"merged":[[14,1,14,11],[2,4,2,10],[3,4,3,11],[7,1,8,11],[9,1,9,11],[11,2,12,10],[16,2,17,10],[19,1,19,11],[21,2,22,10],[24,1,24,11],[25,2,25,3],[25,4,25,5],[25,6,25,8],[25,9,25,11],[31,2,32,10],[26,2,26,3],[26,4,26,5],[26,6,26,8],[26,9,26,11],[27,2,27,3],[27,4,27,5],[27,6,27,8],[27,9,27,11],[28,2,28,3],[28,4,28,5],[28,6,28,8],[28,9,28,11],[29,1,29,11],[73,2,74,10],[34,1,34,11],[36,1,36,11],[38,2,39,10],[41,1,41,11],[56,1,56,11],[58,2,59,10],[61,1,61,11],[63,2,64,10],[66,1,66,11],[68,2,69,10],[71,1,71,11],[54,7,55,10]]}
[]
[]
[null,null,null,null,"PROCEDIMIENTO PARA LA INTEGRACIÓN, ADMINISTRACIÓN Y DIFUSIÓN DEL\nCATÁLOGO NACIONAL DE INDICADORES"]
[null,null,null,null,"Sección VI.  Políticas generales. Numeral 1. Inciso b."]
[]
[]
[]
[null,"4. METADATO DEL INDICADOR CLAVE PROPUESTO"]
[]
[null,"4.1 Nombre del Indicador Clave propuesto:"]
[]
[]
[]
[]
[null,"4.2 Definición del Indicador Clave propuesto:"]
[]
[]
[]
[]
[null,"4.3 ¿Cuál es la forma de cálculo del Indicador Clave propuesto? \n       Señale los conceptos y definiciones estadísticos relacionados con el Indicador Clave."]
[]
[]
[]
[]
[null,"4.4 ¿Cuáles son los proyectos de información con los que se calcula el Indicador Clave propuesto? "]
[null,"Núm.","4.4.1 Nombre del proyecto\n          de información ",null,"4.4.2 Variable o concepto",null,"4.4.3 Unidad del Estado responsable del \n          proyecto de información ",null,null,"4.4.4 Lugar donde puede \n          consultarse"]
[null,1]
[null,2]
[null,3]
[null,"4.5 ¿Cuál es la unidad de medida?"]
[]
[]
[]
[]
[null,"4.6 ¿El Indicador Clave se desagrega por sexo?\n       En caso de contestar afirmativamente, se deberán proporcionar las series para total, mujeres y hombres. Cuando la desagregación por sexo \n       del Indicador no tenga relevancia conceptual deberá señalarse la opción “No aplica”. "]
[]
[null,"4.7 ¿Cuál es la cobertura geográfica?\n       Especifique los posibles desgloses geográficos del Indicador Clave."]
[]
[]
[]
[]
[null,"4.8 Indique la periodicidad del Indicador Clave propuesto:"]
[null,"       Marque las opción correspondiente"]
[]
[null,null,null,null,null,"Anual"]
[]
[null,null,null,null,null,"Semestral"]
[]
[null,null,null,null,null,"Trimestral"]
[null,null,null,true]
[null,null,null,true,null,"Bimestral"]
[null,null,null,false]
[null,null,null,false,null,"Mensual"]
[null,null,null,false]
[null,null,null,false,null,"Otro","Especifique:"]
[]
[null,"4.9 ¿Cuál es el periodo base?\nSeñale el momento temporal que se toma como base para un número Índice. En caso contrario, especifique \"No aplica\"."]
[]
[]
[]
[]
[null,"4.10 ¿Cuál es periodo de referencia del Indicador Clave propuesto?"]
[]
[]
[]
[]
[null,"4.11 ¿A partir de qué fecha se tienen datos disponibles para el Indicador Clave propuesto?\n         La serie histórica debe ser comparable en el tiempo.\n         (Cobertura temporal)"]
[]
[]
[]
[]
[null,"5.9 ¿A partir de qué fecha se tienen datos disponibles para el Indicador Clave propuesto?\n       La serie histórica debe ser comparable en el tiempo.\n       (Cobertura temporal)"]
[]
[null,null,2000]

{"sheet":"Metadatos (IC 2)","index":5,"n_rows":74,"n_cols":10,"rows_kept":74,"cut":false,"hidden":false,"merged":[[61,1,61,11],[63,2,64,10],[71,1,71,11],[73,2,74,10],[3,4,3,11],[34,1,34,11],[36,1,36,11],[38,2,39,10],[41,1,41,11],[56,1,56,11],[58,2,59,10],[28,2,28,3],[28,4,28,5],[28,6,28,8],[28,9,28,11],[31,2,32,10],[29,1,29,11],[26,2,26,3],[26,4,26,5],[26,6,26,8],[26,9,26,11],[27,2,27,3],[27,4,27,5],[27,6,27,8],[27,9,27,11],[54,7,55,10],[2,4,2,10],[66,1,66,11],[68,2,69,10],[7,1,8,11],[9,1,9,11],[11,2,12,10],[14,1,14,11],[16,2,17,10],[19,1,19,11],[21,2,22,10],[24,1,24,11],[25,2,25,3],[25,4,25,5],[25,6,25,8],[25,9,25,11]]}
[]
[]
[null,null,null,null,"PROCEDIMIENTO PARA LA INTEGRACIÓN, ADMINISTRACIÓN Y DIFUSIÓN DEL\nCATÁLOGO NACIONAL DE INDICADORES"]
[null,null,null,null,"Sección VI.  Políticas generales. Numeral 1. Inciso b."]
[]
[]
[]
[null,"4. METADATO DEL INDICADOR CLAVE PROPUESTO"]
[]
[null,"4.1 Nombre del Indicador Clave propuesto:"]
[]
[]
[]
[]
[null,"4.2 Definición del Indicador Clave propuesto:"]
[]
[]
[]
[]
[null,"4.3 ¿Cuál es la forma de cálculo del Indicador Clave propuesto? \n       Señale los conceptos y definiciones estadísticos relacionados con el Indicador Clave."]
[]
[]
[]
[]
[null,"4.4 ¿Cuáles son los proyectos de información con los que se calcula el Indicador Clave propuesto? "]
[null,"Núm.","4.4.1 Nombre del proyecto\n          de información ",null,"4.4.2 Variable o concepto",null,"4.4.3 Unidad del Estado responsable del \n          proyecto de información ",null,null,"4.4.4 Lugar donde puede \n          consultarse"]
[null,1]
[null,2]
[null,3]
[null,"4.5 ¿Cuál es la unidad de medida?"]
[]
[]
[]
[]
[null,"4.6 ¿El Indicador Clave se desagrega por sexo?\n       En caso de contestar afirmativamente, se deberán proporcionar las series para total, mujeres y hombres. Cuando la desagregación por sexo \n       del Indicador no tenga relevancia conceptual deberá señalarse la opción “No aplica”. "]
[]
[null,"4.7 ¿Cuál es la cobertura geográfica?\n       Especifique los posibles desgloses geográficos del Indicador Clave."]
[]
[]
[]
[]
[null,"4.8 Indique la periodicidad del Indicador Clave propuesto:"]
[null,"       Marque las opción correspondiente"]
[]
[null,null,null,null,null,"Anual"]
[]
[null,null,null,null,null,"Semestral"]
[]
[null,null,null,null,null,"Trimestral"]
[null,null,null,true]
[null,null,null,true,null,"Bimestral"]
[null,null,null,false]
[null,null,null,false,null,"Mensual"]
[null,null,null,false]
[null,null,null,false,null,"Otro","Especifique:"]
[]
[null,"4.9 ¿Cuál es el periodo base?\nSeñale el momento temporal que se toma como base para un número Índice. En caso contrario, especifique \"No aplica\"."]
[]
[]
[]
[]
[null,"4.10 ¿Cuál es periodo de referencia del Indicador Clave propuesto?"]
[]
[]
[]
[]
[null,"4.11 ¿A partir de qué fecha se tienen datos disponibles para el Indicador Clave propuesto?\n         La serie histórica debe ser comparable en el tiempo.\n         (Cobertura temporal)"]
[]
[]
[]
[]
[null,"5.9 ¿A partir de qué fecha se tienen datos disponibles para el Indicador Clave propuesto?\n       La serie histórica debe ser comparable en el tiempo.\n       (Cobertura temporal)"]
[]
[null,null,2000]

{"sheet":"Contra Portada","index":6,"n_rows":27,"n_cols":6,"rows_kept":27,"cut":false,"hidden":false,"merged":[[3,5,3,10],[8,1,9,10],[11,6,11,10],[13,6,13,10],[15,6,15,10],[4,5,4,10],[19,6,19,10],[21,6,21,10],[23,6,23,10],[26,5,26,10],[11,1,23,4],[26,1,26,4],[17,6,17,10]]}
[]
[]
[]
[null,null,null,null,null,"PROCEDIMIENTO PARA LA INTEGRACIÓN, ADMINISTRACIÓN Y DIFUSIÓN DEL\nCATÁLOGO NACIONAL DE INDICADORES"]
[null,null,null,null,null,"Sección VI.  Políticas generales. Numeral 1. Inciso b."]
[]
[]
[]
[null,"IDENTIFICACIÓN DE LA PERSONA QUE ELABORÓ EL FORMATO"]
[]
[]
[null,"Persona responsable de proporcionar la información incluida en este formato: ",null,null,null,"Nombre:"]
[]
[null,null,null,null,null,"Apellidos:"]
[]
[null,null,null,null,null,"Puesto:"]
[]
[null,null,null,null,null,"Institución:"]
[]
[null,null,null,null,null,"Domicilio oficial:"]
[null,null,null,null,null," "]
[null,null,null,null,null,"Teléfono oficial:"]
[]
[null,null,null,null,null,"Correo electrónico oficial:"]
[]
[]
[null,"Fecha de entrega del formato:"]

{"sheet":"BASE DE DATOS","index":7,"n_rows":399,"n_cols":5,"rows_kept":399,"cut":false,"hidden":true,"merged":[]}
["NUMERO",null,"DESCRIPCION"]
[1.1000000000000001,null,{"$f":"+'Presentación-IC propuesto'!E115","v":"No declarado"},null,{"$f":"IF(C2=\"No declarado\", \"\")","v":""}]
[1.2,null,{"$f":"+'Presentación-IC propuesto'!E119","v":"No declarado"},{"$f":"IF(C3<>\"No declarado\", MID(C3,1,100),\"\")","v":""},{"$f":"IF(C3=\"No declarado\", \"\")","v":""}]
[1.3,null,{"$f":"+'Presentación-IC propuesto'!C158","v":""},"",false]
[1.4,null,{"$f":"+'Presentación-IC propuesto'!E123","v":"No declarado"},"",""]
[1.5,null,{"$f":"+'Presentación-IC propuesto'!E127","v":"No declarado"},"",""]
[1.6,null,{"$f":"+'Presentación-IC propuesto'!E132","v":"No declarado"},"",""]
[1.7,null,{"$f":"+'Presentación-IC propuesto'!C136","v":"No declarado"},"",""]
[2.1,null,{"$f":"+'Presentación-IC propuesto'!E140","v":"No declarado"},"",""]
["2.2a",null,{"$f":"+'Presentación-IC propuesto'!E144","v":"No declarado"},"",""]
["2.2b",null,{"$f":"+'Presentación-IC propuesto'!E148","v":"No declarado"},"",""]
["2.2c",null,{"$f":"+'Presentación-IC propuesto'!E153","v":"No declarado"},"",""]
["2.2d",null,{"$f":"+'Presentación-IC propuesto'!E162","v":"No declarado"},"",""]
["2.2e",null,{"$f":"+'Presentación-IC propuesto'!E166","v":"No declarado"},"",""]
["2.2f",null,{"$f":"+'Presentación-IC propuesto'!E170","v":"No declarado"},"",""]
["3.1a",null,{"$f":"+#REF!","v":{"$error":"#REF!"}},{"$error":"#REF!"},{"$error":"#REF!"}]
["3.1b",null,{"$f":"+#REF!","v":{"$error":"#REF!"}},{"$error":"#REF!"},{"$error":"#REF!"}]
[3.21,null,{"$f":"+#REF!","v":{"$error":"#REF!"}},{"$error":"#REF!"},{"$error":"#REF!"}]
["3.2.1a",null,{"$f":"+#REF!","v":{"$error":"#REF!"}},{"$error":"#REF!"},{"$error":"#REF!"}]
["3.2.1b",null,{"$f":"+#REF!","v":{"$error":"#REF!"}},{"$error":"#REF!"},{"$error":"#REF!"}]
["3.2.1c",null,{"$f":"+#REF!","v":{"$error":"#REF!"}},{"$error":"#REF!"},{"$error":"#REF!"}]
["3.2.1d",null,{"$f":"+#REF!","v":{"$error":"#REF!"}},{"$error":"#REF!"},{"$error":"#REF!"}]
[3.22,null,{"$f":"+#REF!","v":{"$error":"#REF!"}},{"$error":"#REF!"},{"$error":"#REF!"}]
["3.2.2a",null,{"$f":"+#REF!","v":{"$error":"#REF!"}},{"$error":"#REF!"},{"$error":"#REF!"}]
["3.2.2b",null,{"$f":"+#REF!","v":{"$error":"#REF!"}},{"$error":"#REF!"},{"$error":"#REF!"}]
["3.2.2c",null,{"$f":"+#REF!","v":{"$error":"#REF!"}},{"$error":"#REF!"},{"$error":"#REF!"}]
["3.2.2d",null,{"$f":"+#REF!","v":{"$error":"#REF!"}},{"$error":"#REF!"},{"$error":"#REF!"}]
[3.23,null,{"$f":"+#REF!","v":{"$error":"#REF!"}},{"$error":"#REF!"},{"$error":"#REF!"}]
["3.2.3a",null,{"$f":"+#REF!","v":{"$error":"#REF!"}},{"$error":"#REF!"},{"$error":"#REF!"}]
["3.2.3b",null,{"$f":"+#REF!","v":{"$error":"#REF!"}},{"$error":"#REF!"},{"$error":"#REF!"}]
["3.2.3c",null,{"$f":"+#REF!","v":{"$error":"#REF!"}},{"$error":"#REF!"},{"$error":"#REF!"}]
["3.2.3d",null,{"$f":"+#REF!","v":{"$error":"#REF!"}},{"$error":"#REF!"},{"$error":"#REF!"}]
[3.3,null,{"$f":"+#REF!","v":{"$error":"#REF!"}},{"$error":"#REF!"},{"$error":"#REF!"}]
["3.4a1",null,{"$f":"+'Emer. y compromisos'!E40","v":0},"0",false]
["3.4a2",null,{"$f":"+'Emer. y compromisos'!E42","v":"No declarado"},"",""]
["3.4a3",null,{"$f":"+'Emer. y compromisos'!E43","v":"No declarado"},"",""]
["3.4a4",null,{"$f":"+'Emer. y compromisos'!E44","v":"No declarado"},"",""]
["3.4a5",null,{"$f":"+'Emer. y compromisos'!E45","v":"No declarado"},"",""]
["3.4a6",null,{"$f":"+'Emer. y compromisos'!E46","v":"No declarado"},"",""]
["3.4a7",null,{"$f":"+'Emer. y compromisos'!E47","v":"No declarado"},"",""]
["3.4a8",null,{"$f":"+'Emer. y compromisos'!E48","v":"No declarado"},"",""]
["3.4a9",null,{"$f":"+'Emer. y compromisos'!E49","v":"No declarado"},"",""]
["3.4a10",null,{"$f":"+'Emer. y compromisos'!E50","v":"No declarado"},"",""]
["3.4a11",null,{"$f":"+'Emer. y compromisos'!E51","v":"No declarado"},"",""]
["3.4a12",null,{"$f":"+'Emer. y compromisos'!E52","v":"No declarado"},"",""]
["3.4a13",null,{"$f":"+'Emer. y compromisos'!E53","v":"No declarado"},"",""]
["3.4b1",null,{"$f":"+'Emer. y compromisos'!E55","v":"No declarado"},"",""]
["3.4b2",null,{"$f":"+'Emer. y compromisos'!E56","v":"No declarado"},"",""]
["3.4b3",null,{"$f":"+'Emer. y compromisos'!E57","v":"No declarado"},"",""]
["3.4b4",null,{"$f":"+'Emer. y compromisos'!E58","v":"No declarado"},"",""]
["3.4b5",null,{"$f":"+'Emer. y compromisos'!E59","v":"No declarado"},"",""]
["3.4b6",null,{"$f":"+'Emer. y compromisos'!E60","v":"No declarado"},"",""]
["3.4b7",null,{"$f":"+'Emer. y compromisos'!E61","v":"No declarado"},"",""]
["3.4b8",null,{"$f":"+'Emer. y compromisos'!E62","v":"No declarado"},"",""]
["3.4b9",null,{"$f":"+'Emer. y compromisos'!E63","v":"No declarado"},"",""]
["3.4b10",null,{"$f":"+'Emer. y compromisos'!E64","v":"No declarado"},"",""]
["3.4b11",null,{"$f":"+'Emer. y compromisos'!E65","v":"No declarado"},"",""]
["3.4b12",null,{"$f":"+'Emer. y compromisos'!E66","v":"No declarado"},"",""]
["3.4b13",null,{"$f":"+'Emer. y compromisos'!E67","v":"No declarado"},"",""]
["3.4c1",null,{"$f":"+'Emer. y compromisos'!E69","v":"No declarado"},"",""]
["3.4c2",null,{"$f":"+'Emer. y compromisos'!E70","v":"No declarado"},"",""]
["3.4c3",null,{"$f":"+'Emer. y compromisos'!E71","v":"No declarado"},"",""]
["3.4c4",null,{"$f":"+'Emer. y compromisos'!E72","v":"No declarado"},"",""]
["3.4c5",null,{"$f":"+'Emer. y compromisos'!E73","v":"No declarado"},"",""]
["3.4c6",null,{"$f":"+'Emer. y compromisos'!E74","v":"No declarado"},"",""]
["3.4c7",null,{"$f":"+'Emer. y compromisos'!E75","v":"No declarado"},"",""]
["3.4c8",null,{"$f":"+'Emer. y compromisos'!E76","v":"No declarado"},{"$f":"IF(C67<>\"No declarado\", MID(C67,1,100),\"\")","v":""},{"$f":"IF(C67=\"No declarado\", \"\")","v":""}]
["3.4c9",null,{"$f":"+'Emer. y compromisos'!E77","v":"No declarado"},"",""]
["3.4c10",null,{"$f":"+'Emer. y compromisos'!E78","v":"No declarado"},"",""]
["3.4c11",null,{"$f":"+'Emer. y compromisos'!E79","v":"No declarado"},"",""]
["3.4c12",null,{"$f":"+'Emer. y compromisos'!E80","v":"No declarado"},"",""]
["3.4c13",null,{"$f":"+'Emer. y compromisos'!E81","v":"No declarado"},"",""]
["3.4d1",null,{"$f":"+'Emer. y compromisos'!E83","v":"No declarado"},"",""]
["3.4d2",null,{"$f":"+'Emer. y compromisos'!E84","v":"No declarado"},"",""]
["3.4d3",null,{"$f":"+'Emer. y compromisos'!E85","v":"No declarado"},"",""]
["3.4d4",null,{"$f":"+'Emer. y compromisos'!E86","v":"No declarado"},"",""]
["3.4d5",null,{"$f":"+'Emer. y compromisos'!E87","v":"No declarado"},"",""]
["3.4d6",null,{"$f":"+'Emer. y compromisos'!E88","v":"No declarado"},"",""]
["3.4d7",null,{"$f":"+'Emer. y compromisos'!E89","v":"No declarado"},"",""]
["3.4d8",null,{"$f":"+'Emer. y compromisos'!E90","v":"No declarado"},"",""]
["3.4d9",null,{"$f":"+'Emer. y compromisos'!E91","v":"No declarado"},"",""]
["3.4d10",null,{"$f":"+'Emer. y compromisos'!E92","v":"No declarado"},"",""]
["3.4d11",null,{"$f":"+'Emer. y compromisos'!E93","v":"No declarado"},"",""]
["3.4d12",null,{"$f":"+'Emer. y compromisos'!E94","v":"No declarado"},"",""]
["3.4d13",null,{"$f":"+'Emer. y compromisos'!E95","v":"No declarado"},"",""]
[3.5,null,{"$f":"+'Emer. y compromisos'!H118","v":"No declarado"},"",""]
["3.5.a",null,{"$f":"+'Emer. y compromisos'!E97","v":"No declarado"},"",""]
[3.6,null,{"$f":"+'Emer. y compromisos'!H120","v":"No declarado"},"",""]
["3.6a1",null,{"$f":"+'Emer. y compromisos'!E100","v":"No declarado"},"",""]
["3.6a2",null,{"$f":"+'Emer. y compromisos'!E101","v":"No declarado"},"",""]
["3.6a3",null,{"$f":"+'Emer. y compromisos'!E102","v":"No declarado"},"",""]
["3.6a4",null,{"$f":"+'Emer. y compromisos'!E103","v":"No declarado"},"",""]
["3.6a5",null,{"$f":"+'Emer. y compromisos'!E104","v":"No declarado"},"",""]
["3.6b1",null,{"$f":"+'Emer. y compromisos'!E106","v":"No declarado"},"",""]
["3.6b2",null,{"$f":"+'Emer. y compromisos'!E107","v":"No declarado"},"",""]
["3.6b3",null,{"$f":"+'Emer. y compromisos'!E108","v":"No declarado"},"",""]
["3.6b4",null,{"$f":"+'Emer. y compromisos'!E109","v":"No declarado"},"",""]
["3.6b5",null,{"$f":"+'Emer. y compromisos'!E110","v":"No declarado"},"",""]
["4.1.1",null,{"$f":"+#REF!","v":{"$error":"#REF!"}},{"$error":"#REF!"},{"$error":"#REF!"}]
["4.2.1",null,{"$f":"+#REF!","v":{"$error":"#REF!"}},{"$error":"#REF!"},{"$error":"#REF!"}]
["4.3.1.a.1",null,{"$f":"+#REF!","v":{"$error":"#REF!"}},{"$error":"#REF!"},{"$error":"#REF!"}]
["4.3.1.a.2",null,{"$f":"+#REF!","v":{"$error":"#REF!"}},{"$error":"#REF!"},{"$error":"#REF!"}]
["4.3.1.a.3",null,{"$f":"+#REF!","v":{"$error":"#REF!"}},{"$error":"#REF!"},{"$error":"#REF!"}]
["4.3.1.a.4",null,{"$f":"+#REF!","v":{"$error":"#REF!"}},{"$error":"#REF!"},{"$error":"#REF!"}]
["4.3.1.a.5",null,{"$f":"+#REF!","v":{"$error":"#REF!"}},{"$error":"#REF!"},{"$error":"#REF!"}]
["4.3.1.a.6",null,{"$f":"+#REF!","v":{"$error":"#REF!"}},{"$error":"#REF!"},{"$error":"#REF!"}]
["4.3.1.a.7",null,{"$f":"+#REF!","v":{"$error":"#REF!"}},{"$error":"#REF!"},{"$error":"#REF!"}]
["4.3.1.a.8",null,{"$f":"+#REF!","v":{"$error":"#REF!"}},{"$error":"#REF!"},{"$error":"#REF!"}]
["4.3.1.a.9",null,{"$f":"+#REF!","v":{"$error":"#REF!"}},{"$error":"#REF!"},{"$error":"#REF!"}]
["4.3.1.a.10",null,{"$f":"+#REF!","v":{"$error":"#REF!"}},{"$error":"#REF!"},{"$error":"#REF!"}]
["4.3.1.a.11",null,{"$f":"+#REF!","v":{"$error":"#REF!"}},{"$error":"#REF!"},{"$error":"#REF!"}]
["4.3.1.a.12",null,{"$f":"+#REF!","v":{"$error":"#REF!"}},{"$error":"#REF!"},{"$error":"#REF!"}]
["4.3.1.a.13",null,{"$f":"+#REF!","v":{"$error":"#REF!"}},{"$error":"#REF!"},{"$error":"#REF!"}]
["4.3.1.a.14",null,{"$f":"+#REF!","v":{"$error":"#REF!"}},{"$error":"#REF!"},{"$error":"#REF!"}]
["4.3.1.a.15",null,{"$f":"+#REF!","v":{"$error":"#REF!"}},{"$error":"#REF!"},{"$error":"#REF!"}]
["4.3.1.a.16",null,{"$f":"+#REF!","v":{"$error":"#REF!"}},{"$error":"#REF!"},{"$error":"#REF!"}]
["4.3.1.a.17",null,{"$f":"+#REF!","v":{"$error":"#REF!"}},{"$error":"#REF!"},{"$error":"#REF!"}]
["4.3.1.a.18",null,{"$f":"+#REF!","v":{"$error":"#REF!"}},{"$error":"#REF!"},{"$error":"#REF!"}]
["4.3.1.a.19",null,{"$f":"+#REF!","v":{"$error":"#REF!"}},{"$error":"#REF!"},{"$error":"#REF!"}]
["4.3.1.a.20",null,{"$f":"+#REF!","v":{"$error":"#REF!"}},{"$error":"#REF!"},{"$error":"#REF!"}]
["4.3.1.a.21",null,{"$f":"+#REF!","v":{"$error":"#REF!"}},{"$error":"#REF!"},{"$error":"#REF!"}]
["4.3.1.a.22",null,{"$f":"+#REF!","v":{"$error":"#REF!"}},{"$error":"#REF!"},{"$error":"#REF!"}]
["4.3.1.a.23",null,{"$f":"+#REF!","v":{"$error":"#REF!"}},{"$error":"#REF!"},{"$error":"#REF!"}]
["4.3.1.a.24",null,{"$f":"+#REF!","v":{"$error":"#REF!"}},{"$error":"#REF!"},{"$error":"#REF!"}]
["4.3.1.b.1",null,{"$f":"+#REF!","v":{"$error":"#REF!"}},{"$error":"#REF!"},{"$error":"#REF!"}]
["4.3.1.b.2",null,{"$f":"+#REF!","v":{"$error":"#REF!"}},{"$error":"#REF!"},{"$error":"#REF!"}]
["4.3.1.b.3",null,{"$f":"+#REF!","v":{"$error":"#REF!"}},{"$error":"#REF!"},{"$error":"#REF!"}]
["4.3.1.b.4",null,{"$f":"+#REF!","v":{"$error":"#REF!"}},{"$error":"#REF!"},{"$error":"#REF!"}]
["4.3.1.b.5",null,{"$f":"+#REF!","v":{"$error":"#REF!"}},{"$error":"#REF!"},{"$error":"#REF!"}]
["4.3.1.b.6",null,{"$f":"+#REF!","v":{"$error":"#REF!"}},{"$error":"#REF!"},{"$error":"#REF!"}]
["4.3.1.b.7",null,{"$f":"+#REF!","v":{"$error":"#REF!"}},{"$f":"IF(C131<>\"No declarado\", MID(C131,1,100),\"\")","v":{"$error":"#REF!"}},{"$f":"IF(C131=\"No declarado\", \"\")","v":{"$error":"#REF!"}}]
["4.3.1.b.8",null,{"$f":"+#REF!","v":{"$error":"#REF!"}},{"$error":"#REF!"},{"$error":"#REF!"}]
["4.3.1.b.9",null,{"$f":"+#REF!","v":{"$error":"#REF!"}},{"$error":"#REF!"},{"$error":"#REF!"}]
["4.3.1.b.10",null,{"$f":"+#REF!","v":{"$error":"#REF!"}},{"$error":"#REF!"},{"$error":"#REF!"}]
["4.3.1.b.11",null,{"$f":"+#REF!","v":{"$error":"#REF!"}},{"$error":"#REF!"},{"$error":"#REF!"}]
["4.3.1.b.12",null,{"$f":"+#REF!","v":{"$error":"#REF!"}},{"$error":"#REF!"},{"$error":"#REF!"}]
["4.3.1.b.13",null,{"$f":"+#REF!","v":{"$error":"#REF!"}},{"$error":"#REF!"},{"$error":"#REF!"}]
["4.3.1.b.14",null,{"$f":"+#REF!","v":{"$error":"#REF!"}},{"$error":"#REF!"},{"$error":"#REF!"}]
["4.3.1.b.15",null,{"$f":"+#REF!","v":{"$error":"#REF!"}},{"$error":"#REF!"},{"$error":"#REF!"}]
["4.3.1.b.16",null,{"$f":"+#REF!","v":{"$error":"#REF!"}},{"$error":"#REF!"},{"$error":"#REF!"}]
["4.3.1.b.17",null,{"$f":"+#REF!","v":{"$error":"#REF!"}},{"$error":"#REF!"},{"$error":"#REF!"}]
["4.3.1.b.18",null,{"$f":"+#REF!","v":{"$error":"#REF!"}},{"$error":"#REF!"},{"$error":"#REF!"}]
["4.3.1.b.19",null,{"$f":"+#REF!","v":{"$error":"#REF!"}},{"$error":"#REF!"},{"$error":"#REF!"}]
["4.3.1.b.20",null,{"$f":"+#REF!","v":{"$error":"#REF!"}},{"$error":"#REF!"},{"$error":"#REF!"}]
["4.3.1.b.21",null,{"$f":"+#REF!","v":{"$error":"#REF!"}},{"$error":"#REF!"},{"$error":"#REF!"}]
["4.3.1.b.22",null,{"$f":"+#REF!","v":{"$error":"#REF!"}},{"$error":"#REF!"},{"$error":"#REF!"}]
["4.3.1.b.23",null,{"$f":"+#REF!","v":{"$error":"#REF!"}},{"$error":"#REF!"},{"$error":"#REF!"}]
["4.3.1.b.24",null,{"$f":"+#REF!","v":{"$error":"#REF!"}},{"$error":"#REF!"},{"$error":"#REF!"}]
["4.3.2",null,{"$f":"+#REF!","v":{"$error":"#REF!"}},{"$error":"#REF!"},{"$error":"#REF!"}]
["4.3.2.a",null,{"$f":"+#REF!","v":{"$error":"#REF!"}},{"$error":"#REF!"},{"$error":"#REF!"}]
["4.3.2.b",null,{"$f":"+#REF!","v":{"$error":"#REF!"}},{"$error":"#REF!"},{"$error":"#REF!"}]
["4.3.2.c",null,{"$f":"+#REF!","v":{"$error":"#REF!"}},{"$error":"#REF!"},{"$error":"#REF!"}]
["4.3.2.d",null,{"$f":"+#REF!","v":{"$error":"#REF!"}},{"$error":"#REF!"},{"$error":"#REF!"}]
["4.3.2.e",null,{"$f":"+#REF!","v":{"$error":"#REF!"}},{"$error":"#REF!"},{"$error":"#REF!"}]
["4.3.2.f",null,{"$f":"+#REF!","v":{"$error":"#REF!"}},{"$error":"#REF!"},{"$error":"#REF!"}]
["4.3.2.g",null,{"$f":"+#REF!","v":{"$error":"#REF!"}},{"$error":"#REF!"},{"$error":"#REF!"}]
["4.3.2.h",null,{"$f":"+#REF!","v":{"$error":"#REF!"}},{"$error":"#REF!"},{"$error":"#REF!"}]
["4.3.3.1.1",null,{"$f":"+#REF!","v":{"$error":"#REF!"}},{"$error":"#REF!"},{"$error":"#REF!"}]
["4.3.3.1.2",null,{"$f":"+#REF!","v":{"$error":"#REF!"}},{"$error":"#REF!"},{"$error":"#REF!"}]
["4.3.3.1.3",null,{"$f":"+#REF!","v":{"$error":"#REF!"}},{"$error":"#REF!"},{"$error":"#REF!"}]
["4.3.3.1.4",null,{"$f":"+#REF!","v":{"$error":"#REF!"}},{"$error":"#REF!"},{"$error":"#REF!"}]
["4.3.3.1.5",null,{"$f":"+#REF!","v":{"$error":"#REF!"}},{"$error":"#REF!"},{"$error":"#REF!"}]
["4.3.3.1.6",null,{"$f":"+#REF!","v":{"$error":"#REF!"}},{"$error":"#REF!"},{"$error":"#REF!"}]
["4.3.3.1.7",null,{"$f":"+#REF!","v":{"$error":"#REF!"}},{"$error":"#REF!"},{"$error":"#REF!"}]
["4.3.3.1.8",null,{"$f":"+#REF!","v":{"$error":"#REF!"}},{"$error":"#REF!"},{"$error":"#REF!"}]
["4.3.3.1.9",null,{"$f":"+#REF!","v":{"$error":"#REF!"}},{"$error":"#REF!"},{"$error":"#REF!"}]
["4.3.3.1.10",null,{"$f":"+#REF!","v":{"$error":"#REF!"}},{"$error":"#REF!"},{"$error":"#REF!"}]
["4.3.3.1.11",null,{"$f":"+#REF!","v":{"$error":"#REF!"}},{"$error":"#REF!"},{"$error":"#REF!"}]
["4.3.3.1.12",null,{"$f":"+#REF!","v":{"$error":"#REF!"}},{"$error":"#REF!"},{"$error":"#REF!"}]
["4.3.3.1.13",null,{"$f":"+#REF!","v":{"$error":"#REF!"}},{"$error":"#REF!"},{"$error":"#REF!"}]
["4.3.3.1.14",null,{"$f":"+#REF!","v":{"$error":"#REF!"}},{"$error":"#REF!"},{"$error":"#REF!"}]
["4.3.3.1.15",null,{"$f":"+#REF!","v":{"$error":"#REF!"}},{"$error":"#REF!"},{"$error":"#REF!"}]
["4.3.3.1.16",null,{"$f":"+#REF!","v":{"$error":"#REF!"}},{"$error":"#REF!"},{"$error":"#REF!"}]
["4.3.3.1.17",null,{"$f":"+#REF!","v":{"$error":"#REF!"}},{"$error":"#REF!"},{"$error":"#REF!"}]
["4.3.3.1.18",null,{"$f":"+#REF!","v":{"$error":"#REF!"}},{"$error":"#REF!"},{"$error":"#REF!"}]
["4.3.3.1.19",null,{"$f":"+#REF!","v":{"$error":"#REF!"}},{"$error":"#REF!"},{"$error":"#REF!"}]
["4.3.3.1.20",null,{"$f":"+#REF!","v":{"$error":"#REF!"}},{"$error":"#REF!"},{"$error":"#REF!"}]
["4.3.3.1.21",null,{"$f":"+#REF!","v":{"$error":"#REF!"}},{"$error":"#REF!"},{"$error":"#REF!"}]
["4.3.3.1.22",null,{"$f":"+#REF!","v":{"$error":"#REF!"}},{"$error":"#REF!"},{"$error":"#REF!"}]
["4.3.3.1.23",null,{"$f":"+#REF!","v":{"$error":"#REF!"}},{"$error":"#REF!"},{"$error":"#REF!"}]
["4.3.3.1.24",null,{"$f":"+#REF!","v":{"$error":"#REF!"}},{"$error":"#REF!"},{"$error":"#REF!"}]
["4.3.3.2.1",null,{"$f":"+#REF!","v":{"$error":"#REF!"}},{"$error":"#REF!"},{"$error":"#REF!"}]
["4.3.3.2.2",null,{"$f":"+#REF!","v":{"$error":"#REF!"}},{"$error":"#REF!"},{"$error":"#REF!"}]
["4.3.3.2.3",null,{"$f":"+#REF!","v":{"$error":"#REF!"}},{"$error":"#REF!"},{"$error":"#REF!"}]
["4.3.3.2.4",null,{"$f":"+#REF!","v":{"$error":"#REF!"}},{"$error":"#REF!"},{"$error":"#REF!"}]
["4.3.3.2.5",null,{"$f":"+#REF!","v":{"$error":"#REF!"}},{"$error":"#REF!"},{"$error":"#REF!"}]
["4.3.3.2.6",null,{"$f":"+#REF!","v":{"$error":"#REF!"}},{"$error":"#REF!"},{"$error":"#REF!"}]
["4.3.3.2.7",null,{"$f":"+#REF!","v":{"$error":"#REF!"}},{"$error":"#REF!"},{"$error":"#REF!"}]
["4.3.3.2.8",null,{"$f":"+#REF!","v":{"$error":"#REF!"}},{"$error":"#REF!"},{"$error":"#REF!"}]
["4.3.3.2.9",null,{"$f":"+#REF!","v":{"$error":"#REF!"}},{"$error":"#REF!"},{"$error":"#REF!"}]
["4.3.3.2.10",null,{"$f":"+#REF!","v":{"$error":"#REF!"}},{"$error":"#REF!"},{"$error":"#REF!"}]
["4.3.3.2.11",null,{"$f":"+#REF!","v":{"$error":"#REF!"}},{"$error":"#REF!"},{"$error":"#REF!"}]
["4.3.3.2.12",null,{"$f":"+#REF!","v":{"$error":"#REF!"}},{"$error":"#REF!"},{"$error":"#REF!"}]
["4.3.3.2.13",null,{"$f":"+#REF!","v":{"$error":"#REF!"}},{"$error":"#REF!"},{"$error":"#REF!"}]
["4.3.3.2.14",null,{"$f":"+#REF!","v":{"$error":"#REF!"}},{"$f":"IF(C195<>\"No declarado\", MID(C195,1,100),\"\")","v":{"$error":"#REF!"}},{"$f":"IF(C195=\"No declarado\", \"\")","v":{"$error":"#REF!"}}]
["4.3.3.2.15",null,{"$f":"+#REF!","v":{"$error":"#REF!"}},{"$error":"#REF!"},{"$error":"#REF!"}]
["4.3.3.2.16",null,{"$f":"+#REF!","v":{"$error":"#REF!"}},{"$error":"#REF!"},{"$error":"#REF!"}]
["4.3.3.2.17",null,{"$f":"+#REF!","v":{"$error":"#REF!"}},{"$error":"#REF!"},{"$error":"#REF!"}]
["4.3.3.2.18",null,{"$f":"+#REF!","v":{"$error":"#REF!"}},{"$error":"#REF!"},{"$error":"#REF!"}]
["4.3.3.2.19",null,{"$f":"+#REF!","v":{"$error":"#REF!"}},{"$error":"#REF!"},{"$error":"#REF!"}]
["4.3.3.2.20",null,{"$f":"+#REF!","v":{"$error":"#REF!"}},{"$error":"#REF!"},{"$error":"#REF!"}]
["4.3.3.2.21",null,{"$f":"+#REF!","v":{"$error":"#REF!"}},{"$error":"#REF!"},{"$error":"#REF!"}]
["4.3.3.2.22",null,{"$f":"+#REF!","v":{"$error":"#REF!"}},{"$error":"#REF!"},{"$error":"#REF!"}]
["4.3.3.2.23",null,{"$f":"+#REF!","v":{"$error":"#REF!"}},{"$error":"#REF!"},{"$error":"#REF!"}]
["4.3.3.2.24",null,{"$f":"+#REF!","v":{"$error":"#REF!"}},{"$error":"#REF!"},{"$error":"#REF!"}]
["4.3.3.2.25",null,{"$f":"+#REF!","v":{"$error":"#REF!"}},{"$error":"#REF!"},{"$error":"#REF!"}]
["4.3.3.2.26",null,{"$f":"+#REF!","v":{"$error":"#REF!"}},{"$error":"#REF!"},{"$error":"#REF!"}]
["4.3.3.2.27",null,{"$f":"+#REF!","v":{"$error":"#REF!"}},{"$error":"#REF!"},{"$error":"#REF!"}]
["4.3.3.2.28",null,{"$f":"+#REF!","v":{"$error":"#REF!"}},{"$error":"#REF!"},{"$error":"#REF!"}]
["4.3.3.2.29",null,{"$f":"+#REF!","v":{"$error":"#REF!"}},{"$error":"#REF!"},{"$error":"#REF!"}]
["4.3.3.2.30",null,{"$f":"+#REF!","v":{"$error":"#REF!"}},{"$error":"#REF!"},{"$error":"#REF!"}]
["4.3.4",null,{"$f":"+#REF!","v":{"$error":"#REF!"}},{"$error":"#REF!"}," "]
["4.3.5",null,{"$f":"+#REF!","v":{"$error":"#REF!"}},{"$error":"#REF!"}," "]
["4.3.6",null,{"$f":"+#REF!","v":{"$error":"#REF!"}},{"$error":"#REF!"}," "]
["4.3.6a",null,{"$f":"+#REF!","v":{"$error":"#REF!"}},{"$error":"#REF!"}," "]
["4.3.7",null,{"$f":"+#REF!","v":{"$error":"#REF!"}},{"$error":"#REF!"}," "]
["4.4.1",null,null,""," "]
["4.4.1.a1",null,{"$f":"+#REF!","v":{"$error":"#REF!"}},{"$error":"#REF!"},{"$error":"#REF!"}]
["4.4.1.a2",null,{"$f":"+#REF!","v":{"$error":"#REF!"}},{"$error":"#REF!"},{"$error":"#REF!"}]
["4.4.1.a3",null,{"$f":"+#REF!","v":{"$error":"#REF!"}},{"$error":"#REF!"},{"$error":"#REF!"}]
["4.4.1.a4",null,{"$f":"+#REF!","v":{"$error":"#REF!"}},{"$error":"#REF!"},{"$error":"#REF!"}]
["4.4.1.a5",null,{"$f":"+#REF!","v":{"$error":"#REF!"}},{"$error":"#REF!"},{"$error":"#REF!"}]
["4.4.1.a6",null,{"$f":"+#REF!","v":{"$error":"#REF!"}},{"$error":"#REF!"},{"$error":"#REF!"}]
["4.4.1.a7",null,{"$f":"+#REF!","v":{"$error":"#REF!"}},{"$error":"#REF!"},{"$error":"#REF!"}]
["4.4.1.a8",null,{"$f":"+#REF!","v":{"$error":"#REF!"}},{"$error":"#REF!"},{"$error":"#REF!"}]
["4.4.1.b1",null,{"$f":"+#REF!","v":{"$error":"#REF!"}},{"$error":"#REF!"},{"$error":"#REF!"}]
["4.4.1.b2",null,{"$f":"+#REF!","v":{"$error":"#REF!"}},{"$error":"#REF!"},{"$error":"#REF!"}]
["4.4.1.b3",null,{"$f":"+#REF!","v":{"$error":"#REF!"}},{"$error":"#REF!"},{"$error":"#REF!"}]
["4.4.1.b4",null,{"$f":"+#REF!","v":{"$error":"#REF!"}},{"$error":"#REF!"},{"$error":"#REF!"}]
["4.4.1.b5",null,{"$f":"+#REF!","v":{"$error":"#REF!"}},{"$error":"#REF!"},{"$error":"#REF!"}]
["4.4.1.b6",null,{"$f":"+#REF!","v":{"$error":"#REF!"}},{"$error":"#REF!"},{"$error":"#REF!"}]
["4.4.1.b7",null,{"$f":"+#REF!","v":{"$error":"#REF!"}},{"$error":"#REF!"},{"$error":"#REF!"}]
["4.4.1.b8",null,{"$f":"+#REF!","v":{"$error":"#REF!"}},{"$error":"#REF!"},{"$error":"#REF!"}]
["4.4.1.c1",null,{"$f":"+#REF!","v":{"$error":"#REF!"}},{"$error":"#REF!"},{"$error":"#REF!"}]
["4.4.1.c2",null,{"$f":"+#REF!","v":{"$error":"#REF!"}},{"$error":"#REF!"},{"$error":"#REF!"}]
["4.4.1.c3",null,{"$f":"+#REF!","v":{"$error":"#REF!"}},{"$error":"#REF!"},{"$error":"#REF!"}]
["4.4.1.c4",null,{"$f":"+#REF!","v":{"$error":"#REF!"}},{"$error":"#REF!"},{"$error":"#REF!"}]
["4.4.1.c5",null,{"$f":"+#REF!","v":{"$error":"#REF!"}},{"$error":"#REF!"},{"$error":"#REF!"}]
["4.4.1.c6",null,{"$f":"+#REF!","v":{"$error":"#REF!"}},{"$error":"#REF!"},{"$error":"#REF!"}]
["4.4.1.c7",null,{"$f":"+#REF!","v":{"$error":"#REF!"}},{"$error":"#REF!"},{"$error":"#REF!"}]
["4.4.1.c8",null,{"$f":"+#REF!","v":{"$error":"#REF!"}},{"$error":"#REF!"},{"$error":"#REF!"}]
["4.4.1.d1",null,{"$f":"+#REF!","v":{"$error":"#REF!"}},{"$error":"#REF!"},{"$error":"#REF!"}]
["4.4.1.d2",null,{"$f":"+#REF!","v":{"$error":"#REF!"}},{"$error":"#REF!"},{"$error":"#REF!"}]
["4.4.1.d3",null,{"$f":"+#REF!","v":{"$error":"#REF!"}},{"$error":"#REF!"},{"$error":"#REF!"}]
["4.4.1.d4",null,{"$f":"+#REF!","v":{"$error":"#REF!"}},{"$error":"#REF!"},{"$error":"#REF!"}]
["4.4.1.d5",null,{"$f":"+#REF!","v":{"$error":"#REF!"}},{"$error":"#REF!"},{"$error":"#REF!"}]
["4.4.1.d6",null,{"$f":"+#REF!","v":{"$error":"#REF!"}},{"$error":"#REF!"},{"$error":"#REF!"}]
["4.4.1.d7",null,{"$f":"+#REF!","v":{"$error":"#REF!"}},{"$error":"#REF!"},{"$error":"#REF!"}]
["4.4.1.d8",null,{"$f":"+#REF!","v":{"$error":"#REF!"}},{"$error":"#REF!"},{"$error":"#REF!"}]
["4.4.1.e1",null,{"$f":"+#REF!","v":{"$error":"#REF!"}},{"$error":"#REF!"},{"$error":"#REF!"}]
["4.4.1.e2",null,{"$f":"+#REF!","v":{"$error":"#REF!"}},{"$error":"#REF!"},{"$error":"#REF!"}]
["4.4.1.e3",null,{"$f":"+#REF!","v":{"$error":"#REF!"}},{"$error":"#REF!"},{"$error":"#REF!"}]
["4.4.1.e4",null,{"$f":"+#REF!","v":{"$error":"#REF!"}},{"$error":"#REF!"},{"$error":"#REF!"}]
["4.4.1.e5",null,{"$f":"+#REF!","v":{"$error":"#REF!"}},{"$error":"#REF!"},{"$error":"#REF!"}]
["4.4.1.e6",null,{"$f":"+#REF!","v":{"$error":"#REF!"}},{"$error":"#REF!"},{"$error":"#REF!"}]
["4.4.1.e7",null,{"$f":"+#REF!","v":{"$error":"#REF!"}},{"$error":"#REF!"},{"$error":"#REF!"}]
["4.4.1.e8",null,{"$f":"+#REF!","v":{"$error":"#REF!"}},{"$error":"#REF!"},{"$error":"#REF!"}]
["4.4.1.f1",null,{"$f":"+#REF!","v":{"$error":"#REF!"}},{"$error":"#REF!"},{"$error":"#REF!"}]
["4.4.1.f2",null,{"$f":"+#REF!","v":{"$error":"#REF!"}},{"$f":"IF(C259<>\"No declarado\", MID(C259,1,100),\"\")","v":{"$error":"#REF!"}},{"$f":"IF(C259=\"No declarado\", \"\")","v":{"$error":"#REF!"}}]
["4.4.1.f3",null,{"$f":"+#REF!","v":{"$error":"#REF!"}},{"$error":"#REF!"},{"$error":"#REF!"}]
["4.4.1.f4",null,{"$f":"+#REF!","v":{"$error":"#REF!"}},{"$error":"#REF!"},{"$error":"#REF!"}]
["4.4.1.f5",null,{"$f":"+#REF!","v":{"$error":"#REF!"}},{"$error":"#REF!"},{"$error":"#REF!"}]
["4.4.1.f6",null,{"$f":"+#REF!","v":{"$error":"#REF!"}},{"$error":"#REF!"},{"$error":"#REF!"}]
["4.4.1.f7",null,{"$f":"+#REF!","v":{"$error":"#REF!"}},{"$error":"#REF!"},{"$error":"#REF!"}]
["4.4.1.f8",null,{"$f":"+#REF!","v":{"$error":"#REF!"}},{"$error":"#REF!"},{"$error":"#REF!"}]
["4.4.1.g1",null,{"$f":"+#REF!","v":{"$error":"#REF!"}},{"$error":"#REF!"},{"$error":"#REF!"}]
["4.4.1.g2",null,{"$f":"+#REF!","v":{"$error":"#REF!"}},{"$error":"#REF!"},{"$error":"#REF!"}]
["4.4.1.g3",null,{"$f":"+#REF!","v":{"$error":"#REF!"}},{"$error":"#REF!"},{"$error":"#REF!"}]
["4.4.1.g4",null,{"$f":"+#REF!","v":{"$error":"#REF!"}},{"$error":"#REF!"},{"$error":"#REF!"}]
["4.4.1.g5",null,{"$f":"+#REF!","v":{"$error":"#REF!"}},{"$error":"#REF!"},{"$error":"#REF!"}]
["4.4.1.g6",null,{"$f":"+#REF!","v":{"$error":"#REF!"}},{"$error":"#REF!"},{"$error":"#REF!"}]
["4.4.1.g7",null,{"$f":"+#REF!","v":{"$error":"#REF!"}},{"$error":"#REF!"},{"$error":"#REF!"}]
["4.4.1.g8",null,{"$f":"+#REF!","v":{"$error":"#REF!"}},{"$error":"#REF!"},{"$error":"#REF!"}]
["4.4.1.h1",null,{"$f":"+#REF!","v":{"$error":"#REF!"}},{"$error":"#REF!"},{"$error":"#REF!"}]
["4.4.1.h2",null,{"$f":"+#REF!","v":{"$error":"#REF!"}},{"$error":"#REF!"},{"$error":"#REF!"}]
["4.4.1.h3",null,{"$f":"+#REF!","v":{"$error":"#REF!"}},{"$error":"#REF!"},{"$error":"#REF!"}]
["4.4.1.h4",null,{"$f":"+#REF!","v":{"$error":"#REF!"}},{"$error":"#REF!"},{"$error":"#REF!"}]
["4.4.1.h5",null,{"$f":"+#REF!","v":{"$error":"#REF!"}},{"$error":"#REF!"},{"$error":"#REF!"}]
["4.4.1.h6",null,{"$f":"+#REF!","v":{"$error":"#REF!"}},{"$error":"#REF!"},{"$error":"#REF!"}]
["4.4.1.h7",null,{"$f":"+#REF!","v":{"$error":"#REF!"}},{"$error":"#REF!"},{"$error":"#REF!"}]
["4.4.1.h8",null,{"$f":"+#REF!","v":{"$error":"#REF!"}},{"$error":"#REF!"},{"$error":"#REF!"}]
["4.4.1.i1",null,{"$f":"+#REF!","v":{"$error":"#REF!"}},{"$error":"#REF!"},{"$error":"#REF!"}]
["4.4.1.i2",null,{"$f":"+#REF!","v":{"$error":"#REF!"}},{"$error":"#REF!"},{"$error":"#REF!"}]
["4.4.1.i3",null,{"$f":"+#REF!","v":{"$error":"#REF!"}},{"$error":"#REF!"},{"$error":"#REF!"}]
["4.4.1.i4",null,{"$f":"+#REF!","v":{"$error":"#REF!"}},{"$error":"#REF!"},{"$error":"#REF!"}]
["4.4.1.i5",null,{"$f":"+#REF!","v":{"$error":"#REF!"}},{"$error":"#REF!"},{"$error":"#REF!"}]
["4.4.1.i6",null,{"$f":"+#REF!","v":{"$error":"#REF!"}},{"$error":"#REF!"},{"$error":"#REF!"}]
["4.4.1.i7",null,{"$f":"+#REF!","v":{"$error":"#REF!"}},{"$error":"#REF!"},{"$error":"#REF!"}]
["4.4.1.i8",null,{"$f":"+#REF!","v":{"$error":"#REF!"}},{"$error":"#REF!"},{"$error":"#REF!"}]
["4.4.1.j1",null,{"$f":"+#REF!","v":{"$error":"#REF!"}},{"$error":"#REF!"},{"$error":"#REF!"}]
["4.4.1.j2",null,{"$f":"+#REF!","v":{"$error":"#REF!"}},{"$error":"#REF!"},{"$error":"#REF!"}]
["4.4.1.j3",null,{"$f":"+#REF!","v":{"$error":"#REF!"}},{"$error":"#REF!"},{"$error":"#REF!"}]
["4.4.1.j4",null,{"$f":"+#REF!","v":{"$error":"#REF!"}},{"$error":"#REF!"},{"$error":"#REF!"}]
["4.4.1.j5",null,{"$f":"+#REF!","v":{"$error":"#REF!"}},{"$error":"#REF!"},{"$error":"#REF!"}]
["4.4.1.j6",null,{"$f":"+#REF!","v":{"$error":"#REF!"}},{"$error":"#REF!"},{"$error":"#REF!"}]
["4.4.1.j7",null,{"$f":"+#REF!","v":{"$error":"#REF!"}},{"$error":"#REF!"},{"$error":"#REF!"}]
["4.4.1.j8",null,{"$f":"+#REF!","v":{"$error":"#REF!"}},{"$error":"#REF!"},{"$error":"#REF!"}]
["4.4.1.k1",null,{"$f":"+#REF!","v":{"$error":"#REF!"}},{"$error":"#REF!"},{"$error":"#REF!"}]
["4.4.1.k2",null,{"$f":"+#REF!","v":{"$error":"#REF!"}},{"$error":"#REF!"},{"$error":"#REF!"}]
["4.4.1.k3",null,{"$f":"+#REF!","v":{"$error":"#REF!"}},{"$error":"#REF!"},{"$error":"#REF!"}]
["4.4.1.k4",null,{"$f":"+#REF!","v":{"$error":"#REF!"}},{"$error":"#REF!"},{"$error":"#REF!"}]
["4.4.1.k5",null,{"$f":"+#REF!","v":{"$error":"#REF!"}},{"$error":"#REF!"},{"$error":"#REF!"}]
["4.4.1.k6",null,{"$f":"+#REF!","v":{"$error":"#REF!"}},{"$error":"#REF!"},{"$error":"#REF!"}]
["4.4.1.k7",null,{"$f":"+#REF!","v":{"$error":"#REF!"}},{"$error":"#REF!"},{"$error":"#REF!"}]
["4.4.1.k8",null,{"$f":"+#REF!","v":{"$error":"#REF!"}},{"$error":"#REF!"},{"$error":"#REF!"}]
["4.4.1.l1",null,{"$f":"+#REF!","v":{"$error":"#REF!"}},{"$error":"#REF!"},{"$error":"#REF!"}]
["4.4.1.l2",null,{"$f":"+#REF!","v":{"$error":"#REF!"}},{"$error":"#REF!"},{"$error":"#REF!"}]
["4.4.1.l3",null,{"$f":"+#REF!","v":{"$error":"#REF!"}},{"$error":"#REF!"},{"$error":"#REF!"}]
["4.4.1.l4",null,{"$f":"+#REF!","v":{"$error":"#REF!"}},{"$error":"#REF!"},{"$error":"#REF!"}]
["4.4.1.l5",null,{"$f":"+#REF!","v":{"$error":"#REF!"}},{"$error":"#REF!"},{"$error":"#REF!"}]
["4.4.1.l6",null,{"$f":"+#REF!","v":{"$error":"#REF!"}},{"$error":"#REF!"},{"$error":"#REF!"}]
["4.4.1.l7",null,{"$f":"+#REF!","v":{"$error":"#REF!"}},{"$error":"#REF!"},{"$error":"#REF!"}]
["4.4.1.l8",null,{"$f":"+#REF!","v":{"$error":"#REF!"}},{"$error":"#REF!"},{"$error":"#REF!"}]
["4.4.1.m1",null,{"$f":"+#REF!","v":{"$error":"#REF!"}},{"$error":"#REF!"},{"$error":"#REF!"}]
["4.4.1.m2",null,{"$f":"+#REF!","v":{"$error":"#REF!"}},{"$error":"#REF!"},{"$error":"#REF!"}]
["4.4.1.m3",null,{"$f":"+#REF!","v":{"$error":"#REF!"}},{"$error":"#REF!"},{"$error":"#REF!"}]
["4.4.1.m4",null,{"$f":"+#REF!","v":{"$error":"#REF!"}},{"$error":"#REF!"},{"$error":"#REF!"}]
["4.4.1.m5",null,{"$f":"+#REF!","v":{"$error":"#REF!"}},{"$error":"#REF!"},{"$error":"#REF!"}]
["4.4.1.m6",null,{"$f":"+#REF!","v":{"$error":"#REF!"}},{"$error":"#REF!"},{"$error":"#REF!"}]
["4.4.1.m7",null,{"$f":"+#REF!","v":{"$error":"#REF!"}},{"$error":"#REF!"},{"$error":"#REF!"}]
["4.4.1.m8",null,{"$f":"+#REF!","v":{"$error":"#REF!"}},{"$error":"#REF!"},{"$error":"#REF!"}]
["4.4.1.n1",null,{"$f":"+#REF!","v":{"$error":"#REF!"}},{"$error":"#REF!"},{"$error":"#REF!"}]
["4.4.1.n2",null,{"$f":"+#REF!","v":{"$error":"#REF!"}},{"$f":"IF(C323<>\"No declarado\", MID(C323,1,100),\"\")","v":{"$error":"#REF!"}},{"$f":"IF(C323=\"No declarado\", \"\")","v":{"$error":"#REF!"}}]
["4.4.1.n3",null,{"$f":"+#REF!","v":{"$error":"#REF!"}},{"$error":"#REF!"},{"$error":"#REF!"}]
["4.4.1.n4",null,{"$f":"+#REF!","v":{"$error":"#REF!"}},{"$error":"#REF!"},{"$error":"#REF!"}]
["4.4.1.n5",null,{"$f":"+#REF!","v":{"$error":"#REF!"}},{"$error":"#REF!"},{"$error":"#REF!"}]
["4.4.1.n6",null,{"$f":"+#REF!","v":{"$error":"#REF!"}},{"$error":"#REF!"},{"$error":"#REF!"}]
["4.4.1.n7",null,{"$f":"+#REF!","v":{"$error":"#REF!"}},{"$error":"#REF!"},{"$error":"#REF!"}]
["4.4.1.n8",null,{"$f":"+#REF!","v":{"$error":"#REF!"}},{"$error":"#REF!"},{"$error":"#REF!"}]
["4.4.1.ñ1",null,{"$f":"+#REF!","v":{"$error":"#REF!"}},{"$error":"#REF!"},{"$error":"#REF!"}]
["4.4.1.ñ2",null,{"$f":"+#REF!","v":{"$error":"#REF!"}},{"$error":"#REF!"},{"$error":"#REF!"}]
["4.4.1.ñ3",null,{"$f":"+#REF!","v":{"$error":"#REF!"}},{"$error":"#REF!"},{"$error":"#REF!"}]
["4.4.1.ñ4",null,{"$f":"+#REF!","v":{"$error":"#REF!"}},{"$error":"#REF!"},{"$error":"#REF!"}]
["4.4.1.ñ5",null,{"$f":"+#REF!","v":{"$error":"#REF!"}},{"$error":"#REF!"},{"$error":"#REF!"}]
["4.4.1.ñ6",null,{"$f":"+#REF!","v":{"$error":"#REF!"}},{"$error":"#REF!"},{"$error":"#REF!"}]
["4.4.1.ñ7",null,{"$f":"+#REF!","v":{"$error":"#REF!"}},{"$error":"#REF!"},{"$error":"#REF!"}]
["4.4.1.ñ8",null,{"$f":"+#REF!","v":{"$error":"#REF!"}},{"$error":"#REF!"},{"$error":"#REF!"}]
["4.4.1.o1",null,{"$f":"+#REF!","v":{"$error":"#REF!"}},{"$error":"#REF!"},{"$error":"#REF!"}]
["4.4.1.o2",null,{"$f":"+#REF!","v":{"$error":"#REF!"}},{"$error":"#REF!"},{"$error":"#REF!"}]
["4.4.1.o3",null,{"$f":"+#REF!","v":{"$error":"#REF!"}},{"$error":"#REF!"},{"$error":"#REF!"}]
["4.4.1.o4",null,{"$f":"+#REF!","v":{"$error":"#REF!"}},{"$error":"#REF!"},{"$error":"#REF!"}]
["4.4.1.o5",null,{"$f":"+#REF!","v":{"$error":"#REF!"}},{"$error":"#REF!"},{"$error":"#REF!"}]
["4.4.1.o6",null,{"$f":"+#REF!","v":{"$error":"#REF!"}},{"$error":"#REF!"},{"$error":"#REF!"}]
["4.4.1.o7",null,{"$f":"+#REF!","v":{"$error":"#REF!"}},{"$error":"#REF!"},{"$error":"#REF!"}]
["4.4.1.o8",null,{"$f":"+#REF!","v":{"$error":"#REF!"}},{"$error":"#REF!"},{"$error":"#REF!"}]
["4.4.1.p1",null,{"$f":"+#REF!","v":{"$error":"#REF!"}},{"$error":"#REF!"},{"$error":"#REF!"}]
["4.4.1.p2",null,{"$f":"+#REF!","v":{"$error":"#REF!"}},{"$error":"#REF!"},{"$error":"#REF!"}]
["4.4.1.p3",null,{"$f":"+#REF!","v":{"$error":"#REF!"}},{"$error":"#REF!"},{"$error":"#REF!"}]
["4.4.1.p4",null,{"$f":"+#REF!","v":{"$error":"#REF!"}},{"$error":"#REF!"},{"$error":"#REF!"}]
["4.4.1.p5",null,{"$f":"+#REF!","v":{"$error":"#REF!"}},{"$error":"#REF!"},{"$error":"#REF!"}]
["4.4.1.p6",null,{"$f":"+#REF!","v":{"$error":"#REF!"}},{"$error":"#REF!"},{"$error":"#REF!"}]
["4.4.1.p7",null,{"$f":"+#REF!","v":{"$error":"#REF!"}},{"$error":"#REF!"},{"$error":"#REF!"}]
["4.4.1.p8",null,{"$f":"+#REF!","v":{"$error":"#REF!"}},{"$error":"#REF!"},{"$error":"#REF!"}]
["4.4.1.q1",null,{"$f":"+#REF!","v":{"$error":"#REF!"}},{"$error":"#REF!"},{"$error":"#REF!"}]
["4.4.1.q2",null,{"$f":"+#REF!","v":{"$error":"#REF!"}},{"$error":"#REF!"},{"$error":"#REF!"}]
["4.4.1.q3",null,{"$f":"+#REF!","v":{"$error":"#REF!"}},{"$error":"#REF!"},{"$error":"#REF!"}]
["4.4.1.q4",null,{"$f":"+#REF!","v":{"$error":"#REF!"}},{"$error":"#REF!"},{"$error":"#REF!"}]
["4.4.1.q5",null,{"$f":"+#REF!","v":{"$error":"#REF!"}},{"$error":"#REF!"},{"$error":"#REF!"}]
["4.4.1.q6",null,{"$f":"+#REF!","v":{"$error":"#REF!"}},{"$error":"#REF!"},{"$error":"#REF!"}]
["4.4.1.q7",null,{"$f":"+#REF!","v":{"$error":"#REF!"}},{"$error":"#REF!"},{"$error":"#REF!"}]
["4.4.1.q8",null,{"$f":"+#REF!","v":{"$error":"#REF!"}},{"$error":"#REF!"},{"$error":"#REF!"}]
["4.4.2.1",null,{"$f":"+#REF!","v":{"$error":"#REF!"}},{"$error":"#REF!"},{"$error":"#REF!"}]
["4.4.2.2",null,{"$f":"+#REF!","v":{"$error":"#REF!"}},{"$error":"#REF!"},{"$error":"#REF!"}]
["4.4.2.3",null,{"$f":"+#REF!","v":{"$error":"#REF!"}},{"$error":"#REF!"},{"$error":"#REF!"}]
["4.4.2.4",null,{"$f":"+#REF!","v":{"$error":"#REF!"}},{"$error":"#REF!"},{"$error":"#REF!"}]
["4.4.2.5",null,{"$f":"+#REF!","v":{"$error":"#REF!"}},{"$error":"#REF!"},{"$error":"#REF!"}]
["4.4.2.6",null,{"$f":"+#REF!","v":{"$error":"#REF!"}},{"$error":"#REF!"},{"$error":"#REF!"}]
["4.4.2.7",null,{"$f":"+#REF!","v":{"$error":"#REF!"}},{"$error":"#REF!"},{"$error":"#REF!"}]
["4.4.2.8",null,{"$f":"+#REF!","v":{"$error":"#REF!"}},{"$error":"#REF!"},{"$error":"#REF!"}]
["4.4.3",null,{"$f":"+#REF!","v":{"$error":"#REF!"}},null,{"$error":"#REF!"}]
["4.4.3.1a",null,{"$f":"+#REF!","v":{"$error":"#REF!"}},{"$error":"#REF!"},{"$error":"#REF!"}]
["4.4.3.1b",null,{"$f":"+#REF!","v":{"$error":"#REF!"}},{"$error":"#REF!"},{"$error":"#REF!"}]
["4.4.3.1c",null,{"$f":"+#REF!","v":{"$error":"#REF!"}},{"$error":"#REF!"},{"$error":"#REF!"}]
["4.4.3.2a",null,{"$f":"+#REF!","v":{"$error":"#REF!"}},{"$error":"#REF!"},{"$error":"#REF!"}]
["4.4.3.2b",null,{"$f":"+#REF!","v":{"$error":"#REF!"}},{"$error":"#REF!"},{"$error":"#REF!"}]
["4.4.3.2c",null,{"$f":"+#REF!","v":{"$error":"#REF!"}},{"$error":"#REF!"},{"$error":"#REF!"}]
["4.4.3.3a",null,{"$f":"+#REF!","v":{"$error":"#REF!"}},{"$error":"#REF!"},{"$error":"#REF!"}]
["4.4.3.3b",null,{"$f":"+#REF!","v":{"$error":"#REF!"}},{"$error":"#REF!"},{"$error":"#REF!"}]
["4.4.3.3c",null,{"$f":"+#REF!","v":{"$error":"#REF!"}},{"$error":"#REF!"},{"$error":"#REF!"}]
["4.4.4.1",null,{"$f":"+#REF!","v":{"$error":"#REF!"}},{"$error":"#REF!"},{"$error":"#REF!"}]
["4.4.4.1a",null,{"$f":"+#REF!","v":{"$error":"#REF!"}},{"$error":"#REF!"},{"$error":"#REF!"}]
["4.4.4.2",null,{"$f":"+#REF!","v":{"$error":"#REF!"}},{"$error":"#REF!"},{"$error":"#REF!"}]
["4.4.4.2a",null,{"$f":"+#REF!","v":{"$error":"#REF!"}},{"$error":"#REF!"},{"$error":"#REF!"}]
[5.0999999999999996,null,{"$f":"+#REF!","v":{"$error":"#REF!"}},{"$error":"#REF!"},{"$error":"#REF!"}]
["5.1.1",null,{"$f":"+#REF!","v":{"$error":"#REF!"}},{"$error":"#REF!"},{"$error":"#REF!"}]
["5.1.2",null,{"$f":"+#REF!","v":{"$error":"#REF!"}},{"$error":"#REF!"},{"$error":"#REF!"}]
["5.1a",null,{"$f":"+#REF!","v":{"$error":"#REF!"}},{"$error":"#REF!"},{"$f":"IF(C387=\"No declarado\", \"\")","v":{"$error":"#REF!"}}]
["5.1b",null,{"$f":"+#REF!","v":{"$error":"#REF!"}},{"$f":"IF(C388<>\"No declarado\", MID(C388,1,100),\"\")","v":{"$error":"#REF!"}},{"$error":"#REF!"}]
["5.1c",null,{"$f":"+#REF!","v":{"$error":"#REF!"}},{"$error":"#REF!"},{"$error":"#REF!"}]
["5.1d",null,{"$f":"+#REF!","v":{"$error":"#REF!"}},{"$error":"#REF!"},{"$error":"#REF!"}]
["6.1.1.a",null,{"$f":"+#REF!","v":{"$error":"#REF!"}},{"$error":"#REF!"},{"$error":"#REF!"}]
["6.1.1.b",null,{"$f":"+#REF!","v":{"$error":"#REF!"}},{"$error":"#REF!"},{"$error":"#REF!"}]
["6.1.2",null,{"$f":"+#REF!","v":{"$error":"#REF!"}},{"$error":"#REF!"},{"$error":"#REF!"}]
["6.2.1a",null,{"$f":"+#REF!","v":{"$error":"#REF!"}},{"$error":"#REF!"},{"$error":"#REF!"}]
["6.2.1b",null,{"$f":"+#REF!","v":{"$error":"#REF!"}},{"$error":"#REF!"},{"$error":"#REF!"}]
["6.2.1.1",null,{"$f":"+#REF!","v":{"$error":"#REF!"}},{"$error":"#REF!"},{"$error":"#REF!"}]
["6.2.2",null,{"$f":"+#REF!","v":{"$error":"#REF!"}},{"$error":"#REF!"},{"$error":"#REF!"}]
["6.2.2a",null,{"$f":"+#REF!","v":{"$error":"#REF!"}},{"$error":"#REF!"},{"$error":"#REF!"}]
["6.2.3",null,{"$f":"+#REF!","v":{"$error":"#REF!"}},null,{"$error":"#REF!"}]

{"sheet":"Hoja 1","index":8,"n_rows":116,"n_cols":16,"rows_kept":116,"cut":false,"hidden":true,"merged":[]}
[null,"subsistemas","Personas",null,"Año",null,null,"Trimestre",null,null,"Mes",null,null,"Día","Órden","Atributo"]
[null,"Demográfica y Social",1,1,1980,null,1,"Primer",null,1,"Enero ",null,null,1,"Federal ","No aplica"]
[null,"Económica",2,2,1981,null,2,"Segundo",null,2,"Febrero",null,null,2,"Estatal","Ninguno"]
[null,"Geográfica y del Medio Ambiente",3,3,1982,null,3,"Tercer",null,3,"Marzo",null,null,3,"Municipal"]
[null,"Gobierno, Seguridad Pública e Impartición de Justicia",4,4,1983,null,4,"Cuarto",null,4,"Abril",null,null,4]
[null,null,5,5,1984,null,null,null,null,5,"Mayo",null,null,5]
[null,null,6,6,1985,null,null,null,null,6,"Junio",null,null,6]
[null,null,7,7,1986,null,null,null,null,7,"Julio",null,null,7]
[null,null,8,8,1987,null,null,null,null,8,"Agosto",null,null,8]
[null,null,9,9,1988,null,null,null,null,9,"Septiembre",null,null,9]
[null,null,10,10,1989,null,null,null,null,10,"Octubre",null,null,10]
[null,null,11,11,1990,null,null,null,null,11,"Noviembre",null,null,11]
[null,null,12,12,1991,null,null,null,null,12,"Diciembre",null,null,12]
[null,null,13,13,1992,null,null,null,null,null,null,null,null,13]
[null,null,14,14,1993,null,null,null,null,null,null,null,null,14]
[null,null,15,15,1994,null,null,null,null,null,null,null,null,15]
[null,null,16,16,1995,null,null,null,null,null,null,null,null,16]
[null,null,17,17,1996,null,null,null,null,null,null,null,null,17]
[null,null,18,18,1997,null,null,null,null,null,null,null,null,18]
[null,null,19,19,1998,null,null,null,null,null,null,null,null,19]
[null,null,20,20,1999,null,null,null,null,null,null,null,null,20]
[null,null,21,21,2000,null,null,null,null,null,null,null,null,21]
[null,null,22,22,2001,null,null,null,null,null,null,null,null,22]
[null,null,23,23,2002,null,null,null,null,null,null,null,null,23]
[null,null,24,24,2003,null,null,null,null,null,null,null,null,24]
[null,null,25,25,2004,null,null,null,null,null,null,null,null,25]
[null,null,26,26,2005,null,null,null,null,null,null,null,null,26]
[null,null,27,27,2006,null,null,null,null,null,null,null,null,27]
[null,null,28,28,2007,null,null,null,null,null,null,null,null,28]
[null,null,29,29,2008,null,null,null,null,null,null,null,null,29]
[null,null,30,30,2009,null,null,null,null,null,null,null,null,30]
[null,null,31,31,2010,null,null,null,null,null,null,null,null,31]
[null,null,32,32,2011]
[null,null,33,33,2012]
[null,null,34,34,2013]
[null,null,35,35,2014]
[null,null,36,36,2015]
[null,null,37]
[null,null,38]
[null,null,39]
[null,null,40]
[null,null,41]
[null,null,42]
[null,null,43]
[null,null,44]
[null,null,45]
[null,null,46]
[null,null,47]
[null,null,48]
[null,null,49]
[null,null,50]
[null,null,51]
[null,null,52]
[null,null,53]
[null,null,54]
[null,null,55]
[null,null,56]
[null,null,57]
[null,null,58]
[null,null,59]
[null,null,60]
[null,null,61]
[null,null,62]
[null,null,63]
[null,null,64]
[null,null,65]
[null,null,66]
[null,null,67]
[null,null,68]
[null,null,69]
[null,null,70]
[null,null,71]
[null,null,72]
[null,null,73]
[null,null,74]
[null,null,75]
[null,null,76]
[null,null,77]
[null,null,78]
[null,null,79]
[null,null,80]
[null,null,81]
[null,null,82]
[null,null,83]
[null,null,84]
[null,null,85]
[null,null,86]
[null,null,87]
[null,null,88]
[null,null,89]
[null,null,90]
[null,null,91]
[null,null,92]
[null,null,93]
[null,null,94]
[null,null,95]
[null,null,96]
[null,null,97]
[null,null,98]
[null,null,99]
[null,null,100]
[null,null,101]
[null,null,102]
[null,null,103]
[null,null,104]
[null,null,105]
[null,null,106]
[null,null,107]
[null,null,108]
[null,null,109]
[null,null,110]
[null,null,111]
[null,null,112]
[null,null,113]
[null,null,114]
[null,null,115]

{"sheet":" ","index":9,"n_rows":0,"n_cols":0,"rows_kept":0,"cut":false,"hidden":true,"merged":[]}

{"sheet":"Ficha 1","index":10,"n_rows":54,"n_cols":5,"rows_kept":54,"cut":false,"hidden":true,"merged":[[22,1,23,3],[22,4,23,9],[26,1,27,3],[26,4,27,9],[3,3,3,7],[4,3,4,7],[18,1,18,9],[20,1,21,3],[20,4,21,9],[12,3,12,9],[14,3,14,7],[10,3,10,8],[8,3,8,9],[16,3,16,4],[24,1,25,3],[52,4,52,6],[31,4,31,9],[32,4,33,9],[35,4,36,9],[30,1,30,9],[39,1,53,3],[40,4,40,7],[37,4,37,9],[44,4,44,9],[45,4,45,7],[39,4,39,9],[42,4,42,6],[53,4,53,9],[49,4,49,9],[50,4,50,8],[34,4,34,9],[31,1,37,3],[43,4,43,9],[48,4,48,9],[51,4,51,9],[29,1,29,9],[41,4,41,9],[46,4,46,9],[47,4,47,6]]}
[]
[]
[]
[null,null,null,"Ficha técnica para presentar la propuesta de                                                                                            Información de Interés Nacional"]
[null,null,null,"Información Estadística "]
[]
[]
[]
[null,"a) Información propuesta:",null," "]
[]
[null,"b) Tematica:",null," "]
[]
[null,"c) Proponente:",null," "]
[null,null,null," "]
[null,"d) Subsistema:",null," "]
[null,null,null," "]
[null,"e) Fecha de presentación de propuesta:",null," "]
[]
[null,"     A) DATOS DE IDENTIFICACIÓN DEL PROYECTO QUE GENERA LA INFORMACIÓN E INSTITUCIÓN RESPONSABLE"]
[]
[null,"1. Nombre del proyecto estadístico propuesto:",null,null," "]
[]
[null,"2. Nombre de la institución responsable del proyecto:",null,null," "]
[]
[null,"3.Inscripción del proyecto en el Registro Estadístico Nacional:"]
[]
[null,"4. Otras instituciones participantes en el proyecto:",null,null," "]
[]
[]
[null,"     B) FUNDAMENTOS DEL PROYECTO"]
[null,"Políticas públicas de alcance nacional"]
[null,"5. La información estadística propuesta \n     debe generarse porque lo mandata:",null,null,"Constitución política de los Estados Unidos Mexicanos\nTítulo, capítulo, sección, artículo, fracción, párrafo, fecha de última publicación y observaciones"]
[null,null,null,null," "]
[]
[null,null,null,null,"Ley secundaria\nTítulo, capítulo, sección, artículo, fracción, párrafo, fecha de última publicación y observaciones"]
[null,null,null,null," "]
[]
[]
[]
[null,"6. Uso de la información generada  para \n      apoyar el programa de la institución u otro interinstitucional",null,null,"Plan Nacional de Desarrollo"]
[null,null,null,null,"\nEspecifique el nombre del (los) programa (s) y los objetivos, metas e indicadores relacionados     "]
[null,null,null,null," "]
[null,null,null,null,"Objetivos, metas e indicadores relacionados"]
[null,null,null,null," "]
[null,null,null,null,"Programa sectorial, regional o especial"]
[null,null,null,null,"\nEspecifique el nombre del (los) programa (s) y los objetivos, metas e indicadores relacionados     "]
[null,null,null,null," "]
[null,null,null,null,"Objetivos, metas e indicadores relacionados"]
[null,null,null,null," "]
[null,null,null,null,"Otro ordenamiento legal"]
[null,null,null,null,"Nombre del ordenamiento, especificaciones, fecha de última publicación y observaciones."]
[null,null,null,null," "]
[null,null,null,null,"Objetivos, metas e indicadores relacionados"]
[null,null,null,null," "]

{"sheet":"Ficha 2","index":11,"n_rows":59,"n_cols":8,"rows_kept":59,"cut":false,"hidden":true,"merged":[[24,7,24,9],[22,4,22,6],[23,4,23,6],[24,4,24,6],[22,7,22,9],[23,7,23,9],[25,4,25,6],[33,4,36,9],[40,7,47,9],[38,1,40,3],[49,4,52,9],[38,7,39,9],[40,4,47,6],[25,7,25,9],[34,1,35,3],[37,1,37,9],[38,4,39,6],[48,1,48,9],[58,1,60,3],[49,1,52,3],[58,4,60,9],[32,1,32,9],[31,1,31,9],[55,1,56,3],[55,4,56,9],[53,1,53,9],[3,3,3,8],[4,3,4,8],[28,1,29,3],[28,4,29,9],[9,1,9,9],[20,7,20,9],[21,4,21,6],[21,7,21,9],[15,1,16,3],[15,4,16,9],[18,1,18,9],[19,1,21,3],[20,4,20,6],[8,1,8,9],[10,1,12,3],[11,4,12,9]]}
[]
[]
[]
[null,null,null,"Ficha técnica para presentar la propuesta de                                                                                            Información de Interés Nacional"]
[null,null,null,"Información Estadística "]
[]
[]
[]
[null,"     C) ATENCIÓN DE EMERGENCIAS O COMPROMISOS INTERNACIONALES"]
[null,"Protección civil y prevención de desastres"]
[null,"7. Uso de la información por sistemas de \n    protección civil o de prevención de desastres \n    naturales"]
[]
[]
[]
[]
[null,"8. Organismo que utiliza el proyercto para\n     prevenir o atender desastres naturales"]
[]
[]
[null,"Compromisos internacionales"]
[null,"9. Uso de la información generada para atender \n      compromisos establecidos a nivel \n      internacional"]
[null,null,null,null,"Nombre del acuerdo, tratado o compromiso:",null,null,"Nombre del organismo o país:"]
[null,null,null,null,1,null,null," "]
[null,null,null,null,2,null,null," "]
[null,null,null,null,3,null,null," "]
[null,null,null,null,4,null,null," "]
[null,null,null,null,5,null,null," "]
[]
[]
[null,"10. Validación de la\n        Secretaría de Relaciones Exteriores"]
[]
[]
[null,"     D) METODOLOGÍA DEL PROYECTO ESTADÍSTICO QUE GENERA LA INFORMACIÓN PROPUESTA:"]
[null,"Método de generación aplicado"]
[]
[null,"11. Método de generación\n         de información  estadística"]
[]
[]
[null,"Soporte técnico"]
[null,"12. Estándares o recomendaciones de \n        organismos nacionales o \n        internacionales aplicados",null,null,"Nombre",null,null,"Organismo elaborador"]
[]
[null,null,null,null," "]
[]
[]
[]
[]
[]
[]
[]
[null,"Unidad de observación"]
[null,"13. Unidad de observación"]
[]
[]
[]
[null,"Periodicidad o frecuencia de ejecución"]
[]
[null,"14. Periodicidad o frecuencia de ejecución"]
[]
[]
[null,"15. Cobertura temporal (Datos más recientes)",null,null," "]

{"sheet":"Ficha 3","index":12,"n_rows":156,"n_cols":9,"rows_kept":156,"cut":false,"hidden":true,"merged":[[8,1,144,2],[140,3,140,12],[136,3,136,6],[71,3,71,12],[137,3,137,12],[64,3,64,12],[65,3,65,12],[110,3,117,12],[104,3,104,12],[107,3,107,12],[108,3,108,12],[105,3,105,12],[106,3,106,12],[109,3,109,12],[125,3,125,12],[126,3,126,12],[127,3,127,12],[55,3,62,12],[54,3,54,12],[27,3,27,12],[89,3,89,12],[86,3,86,12],[119,3,119,12],[92,3,99,12],[163,3,163,12],[164,3,164,12],[157,3,157,12],[158,3,158,12],[159,3,159,12],[160,3,160,12],[128,3,135,12],[146,3,146,12],[147,3,154,12],[139,3,139,12],[138,3,138,12],[144,3,144,12],[141,3,141,12],[142,3,142,12],[161,3,161,12],[155,3,156,6],[143,3,143,12],[85,3,85,12],[87,3,87,12],[88,3,88,12],[84,3,84,12],[83,3,83,12],[81,3,81,8],[82,3,82,12],[91,3,91,12],[162,3,162,12],[123,3,123,12],[124,3,124,12],[103,3,103,12],[118,3,118,12],[122,3,122,12],[121,3,121,12],[120,3,120,12],[102,3,102,12],[100,3,100,12],[101,3,101,12],[90,3,90,12],[3,3,3,10],[4,3,4,10],[30,3,30,12],[47,3,47,12],[36,3,36,12],[37,3,44,12],[49,3,49,12],[46,3,46,12],[8,3,8,12],[11,3,11,12],[17,3,17,12],[19,3,26,12],[18,3,18,12],[29,3,29,12],[31,3,31,12],[32,3,32,12],[33,3,33,12],[34,3,34,12],[35,3,35,12],[45,3,45,4],[10,3,10,12],[9,3,9,4],[9,8,9,12],[12,3,12,12],[14,3,14,12],[28,3,28,12],[15,3,15,12],[16,3,16,12],[13,3,13,12],[73,3,80,12],[53,3,53,12],[51,3,51,12],[52,3,52,12],[48,3,48,12],[50,3,50,12],[66,3,66,12],[72,3,72,12],[70,3,70,12],[69,3,69,12],[67,3,67,12],[68,3,68,12],[63,3,63,4]]}
[]
[]
[]
[null,null,null,"Ficha técnica para presentar la propuesta de                                                                                            Información de Interés Nacional"]
[null,null,null,"Información Estadística "]
[]
[]
[]
[null,"16.  Documentos\n         disponibles en el\n         proyecto (Más \n         recientes)",null,"Documento   /   Año de elaboración   /   Institución que lo elaboró"]
[null,null,null,"PLANEACIÓN GENERAL",null,null,null,null,"(Se anexa un ejemplar de cada documento señalado)"]
[null,null,null," "]
[null,null,null," "]
[null,null,null," "]
[null,null,null," "]
[null,null,null," "]
[null,null,null," "]
[null,null,null," "]
[null,null,null," "]
[null,null,null,"MARCO CONCEPTUAL"]
[null,null,null," "]
[]
[]
[]
[]
[]
[]
[]
[null,null,null,"CRITERIOS DE VALIDACIÓN "]
[null,null,null," "]
[null,null,null," "]
[null,null,null," "]
[null,null,null," "]
[null,null,null," "]
[null,null,null," "]
[null,null,null," "]
[null,null,null," "]
[null,null,null,"GLOSARIOS"]
[]
[]
[]
[]
[]
[]
[]
[]
[null,null,null,"CLASIFICADORES"]
[]
[]
[]
[]
[]
[]
[]
[]
[null,null,null,"CUESTIONARIOS"]
[]
[]
[]
[]
[]
[]
[]
[]
[null,null,null,"MARCO DE MUESTREO"]
[]
[]
[]
[]
[]
[]
[]
[]
[null,null,null,"MÉTODO PARA LA DETERMINACIÓN DEL TAMAÑO Y SELECCIÓN DE LA MUESTRA "]
[]
[]
[]
[]
[]
[]
[]
[]
[null,null,null,"RESULTADOS DEL DISEÑO DE LA MUESTRA"]
[]
[]
[]
[]
[]
[]
[]
[]
[null,null,null,"MANUALES OPERATIVOS "]
[null,null,null,"Manuales de capacitación"]
[]
[]
[]
[]
[]
[]
[]
[]
[null,null,null,"Instructivos de llenado de cuestionarios"]
[]
[]
[]
[]
[]
[]
[]
[]
[null,null,null,"Manuales de procedimientos para la captación de datos"]
[]
[]
[]
[]
[]
[]
[]
[]
[null,null,null,"Manuales de procedimientos para la captura y procesamiento de datos"]
[]
[]
[]
[]
[]
[]
[]
[]
[null,null,null,"Manuales para la presentación de resultados"]
[]
[]
[]
[]
[]
[]
[]
[]
[null,null,null,"SISTEMA DE CAPTURA DE DATOS"]
[]
[]
[]
[]
[]
[]
[]
[]
[]
[null,null,null,"DOCUMENTACIÓN DE PRUEBAS Y RESULTADOS"]
[]
[]
[]
[]
[]
[]
[]
[]
[null,null,null,"DOCUMENTACIÓN DEL PROYECTO Y RESULTADOS"]

{"sheet":"Ficha 4","index":13,"n_rows":56,"n_cols":9,"rows_kept":56,"cut":false,"hidden":true,"merged":[[37,6,41,7],[37,8,41,9],[43,8,43,9],[51,1,55,3],[46,4,46,5],[46,6,46,9],[52,4,52,5],[53,4,53,5],[55,6,55,7],[54,8,54,9],[55,8,55,9],[53,8,53,9],[54,6,54,7],[42,6,42,7],[42,4,42,5],[43,4,43,5],[43,6,43,7],[42,8,42,9],[44,1,47,3],[44,4,45,5],[44,6,45,9],[47,4,50,5],[47,6,50,9],[56,1,56,3],[8,1,9,3],[8,7,9,9],[10,4,10,5],[11,4,12,9],[13,4,13,5],[14,4,15,9],[16,4,16,5],[17,4,18,9],[19,4,19,5],[20,4,21,9],[22,4,22,5],[23,4,24,9],[25,4,25,5],[26,4,27,9],[28,4,28,5],[3,3,3,8],[4,3,4,8],[54,4,54,5],[29,4,30,9],[31,4,31,5],[32,4,33,9],[35,1,38,3],[34,1,34,9],[35,4,36,5],[35,8,36,9],[37,4,41,5],[35,6,36,7],[51,6,51,7],[51,8,51,9],[52,6,52,7],[53,6,53,7]]}
[]
[]
[]
[null,null,null,"Ficha técnica para presentar la propuesta de                                                                                            Información de Interés Nacional"]
[null,null,null,"Información Estadística "]
[]
[]
[]
[null,"17. Indicadores utilizados para medir la \n      calidad de los procesos",null,null,null,null,null,"(Se anexa metodología de cálculo de los  indicadores utilizados y resultados del operativo más reciente disponibles)"]
[]
[null,null,null,null,"PLANEACIÓN DEL PROYECTO"]
[null,null,null,null," "]
[]
[null,null,null,null,"DISEÑO CONCEPTUAL"]
[null,null,null,null," "]
[]
[null,null,null,null,"DISEÑO DE LA MUESTRA"]
[null,null,null,null," "]
[]
[null,null,null,null,"DISEÑO DE LA CAPTACIÓN "]
[null,null,null,null," "]
[]
[null,null,null,null,"DISEÑO DEL PROCESAMIENTO"]
[null,null,null,null," "]
[]
[null,null,null,null,"OPERATIVO DE CAPTACIÓN "]
[null,null,null,null," "]
[]
[null,null,null,null,"PROCESAMIENTO Y LIBERACIÓN DE DATOS"]
[null,null,null,null," "]
[]
[null,null,null,null,"PRESENTACIÓN Y DIVULGACIÓN DE RESULTADOS"]
[null,null,null,null," "]
[]
[null,"D.4 Soporte técnico"]
[null,"18. Disponibilidad de certificación  o \n      validación dada por algún organismo \n      nacional o internacional",null,null,"Fase o actividad",null,"Organismo certificador",null,"Periodo que cubre"]
[]
[null,null,null,null," ",null," ",null," "]
[]
[]
[]
[]
[null,null,null,null," ",null," ",null," "]
[null,null,null,null," ",null," ",null," "]
[null,"19. Tipo de asistencia de organismos \n       nacionales o internacionales",null,null,"Apoyo técnico",null,"Capacitación"]
[]
[null,null,null,null," ",null," "]
[null,null,null,null," ",null," "]
[]
[]
[]
[null,"20. Medio de almacenamiento \n        de la información",null,null,null,null,"Recopilación ",null,"Almacenamiento"]
[null,null,null,null,"Formatos o expedientes impresos"]
[null,null,null,null,"Archivos electrónicos en hoja de cálculo",null," "]
[null,null,null,null,"Base de datos",null," "]
[null,null,null,null,"Otro",null," "]

{"sheet":"Hoja1","index":14,"n_rows":0,"n_cols":0,"rows_kept":0,"cut":false,"hidden":true,"merged":[]}